Workbook

Sheet Splash
C5: Available FREE from www.EXCELinBusiness.co.uk
G12: The Share Price
C13: Fourier Analysis Transform
C14: Basic Operating System
H15: ( FATBOY )
E17: The FATBOY enables you to analyse share price over several years and attempts to predict the share price over the next few months. Just follow the menu-flow diagram. First, input the share price over as much time as possible, then adjust the sliders on the FATBOY screen to match the current chart and, when the best match has been found, review the chart (found on the 10 Yr Focus tab) and carefully consider your investment strategy. All the best from - The FATBOY Team
C25: A member of BTecNet(UK) | N25: =Version!I24 -> Version: | O25: =Version!J24 -> 2020v12

Sheet Menu
B34: Member of BTecNet(UK) | M34: =Version!I24 -> Version: | N34: =Version!J24 -> 2020v12

Sheet Share Price Input
F5: Share Price Data Entry
C7: Delete all the date in the white 'Share Price' column. Then enter share price DATA of interest remembering to match the DATE as best as possible. (The more data the better, over 10 years is recommended) Use the Data Multiplier to ensure the maximum data-point value is under 10,000
E9: DATE | G9: SHARE PRICE | H9: Data Multiplier
E10: DD/MM/YYYY | G10: NMBR | H10: 1
H11: Data-Point
E12: 1990-10-01 | G12: 2006 | H12: =G12*$H$10 -> 2006
E13: 1990-11-01 | G13: 2050 | H13: 2050
E14: 1990-12-01 | G14: 2149 | H14: 2149
E15: 1991-01-01 | G15: 2144 | H15: 2144
E16: 1991-02-01 | G16: 2177 | H16: 2177
E17: 1991-03-01 | G17: 2381 | H17: 2381
E18: 1991-04-01 | G18: 2457 | H18: 2457
E19: 1991-05-01 | G19: 2486 | H19: 2486
E20: 1991-06-01 | G20: 2500 | H20: 2500
E21: 1991-07-01 | G21: 2415 | H21: 2415
E22: 1991-08-01 | G22: 2589 | H22: 2589
E23: 1991-09-01 | G23: 2646 | H23: 2646
E24: 1991-10-01 | G24: 2622 | H24: 2622
E25: 1991-11-01 | G25: 2566 | H25: 2566
E26: 1991-12-01 | G26: 2420 | H26: 2420
E27: 1992-01-01 | G27: 2493 | H27: 2493
E28: 1992-02-01 | G28: 2571 | H28: 2571
E29: 1992-03-01 | G29: 2562 | H29: 2562
E30: 1992-04-01 | G30: 2440 | H30: 2440
E31: 1992-05-01 | G31: 2654 | H31: 2654
E32: 1992-06-01 | G32: 2708 | H32: 2708
E33: 1992-07-01 | G33: 2521 | H33: 2521
E34: 1992-08-01 | G34: 2400 | H34: 2400
E35: 1992-09-01 | G35: 2313 | H35: 2313
E36: 1992-10-01 | G36: 2553 | H36: 2553
E37: 1992-11-01 | G37: 2658 | H37: 2658
E38: 1992-12-01 | G38: 2779 | H38: 2779
E39: 1993-01-01 | G39: 2847 | H39: 2847
E40: 1993-02-01 | G40: 2807 | H40: 2807
E41: 1993-03-01 | G41: 2868 | H41: 2868
E42: 1993-04-01 | G42: 2879 | H42: 2879
E43: 1993-05-01 | G43: 1831 | H43: 1831
E44: 1993-06-01 | G44: 2841 | H44: 2841
E45: 1993-07-01 | G45: 2900 | H45: 2900
E46: 1993-08-01 | G46: 2926 | H46: 2926
E47: 1993-09-01 | G47: 3100 | H47: 3100
E48: 1993-10-01 | G48: 3037 | H48: 3037
E49: 1993-11-01 | G49: 3171 | H49: 3171
E50: 1993-12-01 | G50: 3167 | H50: 3167
E51: 1994-01-01 | G51: 3418 | H51: 3418
E52: 1994-02-01 | G52: 3492 | H52: 3492
E53: 1994-03-01 | G53: 3328 | H53: 3328
E54: 1994-04-01 | G54: 3086 | H54: 3086
E55: 1994-05-01 | G55: 3125 | H55: 3125
E56: 1994-06-01 | G56: 2971 | H56: 2971
E57: 1994-07-01 | G57: 2919 | H57: =G57*$H$10 -> 2919
E58: 1994-08-01 | G58: 3083 | H58: =G58*$H$10 -> 3083
E59: 1994-09-01 | G59: 3251 | H59: 3251
E60: 1994-10-01 | G60: 3026 | H60: 3026
E61: 1994-11-01 | G61: 3097 | H61: 3097
E62: 1994-12-01 | G62: 3081 | H62: 3081
E63: 1995-01-01 | G63: 3066 | H63: 3066
E64: 1995-02-01 | G64: 2992 | H64: 2992
E65: 1995-03-01 | G65: 3009 | H65: 3009
E66: 1995-04-01 | G66: 3138 | H66: 3138
E67: 1995-05-01 | G67: 3217 | H67: 3217
E68: 1995-06-01 | G68: 3319 | H68: 3319
E69: 1995-07-01 | G69: 3379 | H69: 3379
E70: 1995-08-01 | G70: 3315 | H70: 3315
E71: 1995-09-01 | G71: 3463 | H71: 3463
E72: 1995-10-01 | G72: 3478 | H72: 3478
E73: 1995-11-01 | G73: 3508 | H73: 3508
E74: 1995-12-01 | G74: 3529 | H74: 3529
E75: 1996-01-01 | G75: 3759 | H75: 3759
E76: 1996-02-01 | G76: 3727 | H76: 3727
E77: 1996-03-01 | G77: 3672 | H77: 3672
E78: 1996-04-01 | G78: 3809 | H78: 3809
E79: 1996-05-01 | G79: 3747 | H79: 3747
E80: 1996-06-01 | G80: 3711 | H80: 3711
E81: 1996-07-01 | G81: 3703 | H81: 3703
E82: 1996-08-01 | G82: 3867 | H82: 3867
E83: 1996-09-01 | G83: 3953 | H83: 3953
E84: 1996-10-01 | G84: 3979 | H84: 3979
E85: 1996-11-01 | G85: 4058 | H85: 4058
E86: 1996-12-01 | G86: 4118 | H86: 4118
E87: 1997-01-01 | G87: 4275 | H87: 4275
E88: 1997-02-01 | G88: 4308 | H88: 4308
E89: 1997-03-01 | G89: 4312 | H89: 4312
E90: 1997-04-01 | G90: 4436 | H90: 4436
E91: 1997-05-01 | G91: 4621 | H91: 4621
E92: 1997-06-01 | G92: 4604 | H92: 4604
E93: 1997-07-01 | G93: 4907 | H93: 4907
E94: 1997-08-01 | G94: 4817 | H94: 4817
E95: 1997-09-01 | G95: 5244 | H95: 5244
E96: 1997-10-01 | G96: 4801 | H96: 4801
E97: 1997-11-01 | G97: 4889 | H97: 4889
E98: 1997-12-01 | G98: 5045 | H98: 5045
E99: 1998-01-01 | G99: 5107 | H99: 5107
E100: 1998-02-01 | G100: 5582 | H100: 5582
E101: 1998-03-01 | G101: 5782 | H101: 5782
E102: 1998-04-01 | G102: 6104 | H102: 6104
E103: 1998-05-01 | G103: 5948 | H103: 5948
E104: 1998-06-01 | G104: 5888 | H104: 5888
E105: 1998-07-01 | G105: 6100 | H105: 6100
E106: 1998-08-01 | G106: 5455 | H106: 5455
E107: 1998-09-01 | G107: 5269 | H107: 5269
E108: 1998-10-01 | G108: 5038 | H108: 5038
E109: 1998-11-01 | G109: 5463 | H109: 5463
E110: 1998-12-01 | G110: 5535 | H110: 5535
E111: 1999-01-01 | G111: 5282 | H111: 5282
E112: 1999-02-01 | G112: 5951 | H112: 5951
E113: 1999-03-01 | G113: 6282 | H113: 6282
E114: 1999-04-01 | G114: 6494 | H114: 6494
E115: 1999-05-01 | G115: 6457 | H115: 6457
E116: 1999-06-01 | G116: 6430 | H116: 6430
E117: 1999-07-01 | G117: 6473 | H117: 6473
E118: 1999-08-01 | G118: 6153 | H118: 6153
E119: 1999-09-01 | G119: 6116 | H119: 6116
E120: 1999-10-01 | G120: 6039 | H120: 6039
E121: 1999-11-01 | G121: 6512 | H121: 6512
E122: 1999-12-01 | G122: 6702 | H122: =G122*$H$10 -> 6702
E123: 2000-01-01 | G123: 6532 | H123: 6532
E124: 2000-02-01 | G124: 6069 | H124: 6069
E125: 2000-03-01 | G125: 6487 | H125: 6487
E126: 2000-04-01 | G126: 6357 | H126: 6357
E127: 2000-05-01 | G127: 6284 | H127: 6284
E128: 2000-06-01 | G128: 6536 | H128: 6536
E129: 2000-07-01 | G129: 6475 | H129: 6475
E130: 2000-08-01 | G130: 6420 | H130: 6420
E131: 2000-09-01 | G131: 6555 | H131: 6555
E132: 2000-10-01 | G132: 6276 | H132: 6276
E133: 2000-11-01 | G133: 6413 | H133: 6413
E134: 2000-12-01 | G134: 6264 | H134: 6264
E135: 2001-01-01 | G135: 6165 | H135: 6165
E136: 2001-02-01 | G136: 6176 | H136: 6176
E137: 2001-03-01 | G137: 5580 | H137: 5580
E138: 2001-04-01 | G138: 5920 | H138: 5920
E139: 2001-05-01 | G139: 5808 | H139: 5808
E140: 2001-06-01 | G140: 5630 | H140: 5630
E141: 2001-07-01 | G141: 5482 | H141: 5482
E142: 2001-08-01 | G142: 5532 | H142: 5532
E143: 2001-09-01 | G143: 4785 | H143: 4785
E144: 2001-10-01 | G144: 5071 | H144: 5071
E145: 2001-11-01 | G145: 5203 | H145: 5203
E146: 2001-12-01 | G146: 5217 | H146: 5217
E147: 2002-01-01 | G147: 5189 | H147: 5189
E148: 2002-02-01 | G148: 5169 | H148: 5169
E149: 2002-03-01 | G149: 5271 | H149: 5271
E150: 2002-04-01 | G150: 5165 | H150: 5165
E151: 2002-05-01 | G151: 5085 | H151: 5085
E152: 2002-06-01 | G152: 4540 | H152: 4540
E153: 2002-07-01 | G153: 4240 | H153: 4240
E154: 2002-08-01 | G154: 4209 | H154: 4209
E155: 2002-09-01 | G155: 3721 | H155: 3721
E156: 2002-10-01 | G156: 4039 | H156: 4039
E157: 2002-11-01 | G157: 4169 | H157: 4169
E158: 2002-12-01 | G158: 3940 | H158: 3940
E159: 2003-01-01 | G159: 3567 | H159: 3567
E160: 2003-02-01 | G160: 3655 | H160: 3655
E161: 2003-03-01 | G161: 3625 | H161: 3625
E162: 2003-04-01 | G162: 3600 | H162: 3600
E163: 2003-05-01 | G163: 4048 | H163: 4048
E164: 2003-06-01 | G164: 4031 | H164: 4031
E165: 2003-07-01 | G165: 4157 | H165: 4157
E166: 2003-08-01 | G166: 4161 | H166: 4161
E167: 2003-09-01 | G167: 4091 | H167: 4091
E168: 2003-10-01 | G168: 4092 | H168: 4092
E169: 2003-11-01 | G169: 4332 | H169: 4332
E170: 2003-12-01 | G170: 4342 | H170: 4342
E171: 2004-01-01 | G171: 4510 | H171: 4510
E172: 2004-02-01 | G172: 4390 | H172: 4390
E173: 2004-03-01 | G173: 4540 | H173: 4540
E174: 2004-04-01 | G174: 4410 | H174: 4410
E175: 2004-05-01 | G175: 4489 | H175: 4489
E176: 2004-06-01 | G176: 4430 | H176: 4430
E177: 2004-07-01 | G177: 4464 | H177: 4464
E178: 2004-08-01 | G178: 4413 | H178: 4413
E179: 2004-09-01 | G179: 4459 | H179: 4459
E180: 2004-10-01 | G180: 4570 | H180: 4570
E181: 2004-11-01 | G181: 4264 | H181: 4264
E182: 2004-12-01 | G182: 4703 | H182: 4703
E183: 2005-01-01 | G183: 4814 | H183: 4814
E184: 2005-02-01 | G184: 4852 | H184: 4852
E185: 2005-03-01 | G185: 4968 | H185: 4968
E186: 2005-04-01 | G186: 4895 | H186: =G186*$H$10 -> 4895
E187: 2005-05-01 | G187: 4801 | H187: 4801
E188: 2005-06-01 | G188: 4964 | H188: 4964
E189: 2005-07-01 | G189: 5113 | H189: 5113
E190: 2005-08-01 | G190: 5290 | H190: 5290
E191: 2005-09-01 | G191: 5296 | H191: 5296
E192: 2005-10-01 | G192: 5477 | H192: 5477
E193: 2005-11-01 | G193: 5423 | H193: 5423
E194: 2005-12-01 | G194: 5423 | H194: 5423
E195: 2006-01-01 | G195: 5618 | H195: 5618
E196: 2006-02-01 | G196: 5801 | H196: 5801
E197: 2006-03-01 | G197: 5791 | H197: 5791
E198: 2006-04-01 | G198: 5964 | H198: 5964
E199: 2006-05-01 | G199: 6082 | H199: 6082
E200: 2006-06-01 | G200: 5723 | H200: 5723
E201: 2006-07-01 | G201: 5833 | H201: 5833
E202: 2006-08-01 | G202: 5880 | H202: 5880
E203: 2006-09-01 | G203: 5906 | H203: 5906
E204: 2006-10-01 | G204: 5957 | H204: 5957
E205: 2006-11-01 | G205: 6129 | H205: 6129
E206: 2006-12-01 | G206: 6048 | H206: 6048
... 300 more rows

Sheet FATBOY Sliders
D21: Change the Amplitude, Frequency & the Phase of the individual sine waves by typing in the WHITE cells below and/or by using the sliders below.
E32: 1 | F32: 2 | G32: 3 | H32: 4 | I32: 5 | J32: 6 | K32: 7 | L32: 8 | M32: 9 | N32: 10 | O32: 11 | P32: 12 | Q32: 13 | R32: 14
D33: Amplitude | E33: 5000 | F33: 33000 | G33: 4327 | H33: 5000 | I33: 11827 | J33: 15000 | K33: 6635 | L33: 5000 | M33: 5000 | N33: 5000 | O33: 5000 | P33: 5000 | Q33: 5000 | R33: 2885
D34: Frequency | E34: 0 | F34: 2658 | G34: 92308 | H34: 0 | I34: 2654 | J34: 14227 | K34: 13408 | L34: 0 | M34: 0 | N34: 0 | O34: 0 | P34: 0 | Q34: 0 | R34: 20770
D35: Phase | E35: 180 | F35: 180 | G35: 180 | H35: 180 | I35: 185 | J35: 215 | K35: 180 | L35: 180 | M35: 180 | N35: 180 | O35: 180 | P35: 180 | Q35: 180 | R35: 240
D36: Change the Amplitude, Frequency & the Phase by typing in the white cells above or by using the sliders above.
B44: Adjusted Ready for Charting | E44: 1 | F44: 2 | G44: 3 | H44: 4 | I44: 5 | J44: 6 | K44: 7 | L44: 8 | M44: 9 | N44: 10 | O44: 11 | P44: 12 | Q44: 13 | R44: 14
D45: Amplitude | E45: =E50/20 -> 250 | F45: =F50/20 -> 1650 | G45: 216.35 | H45: 250 | I45: 591.35 | J45: 750 | K45: 331.75 | L45: 250 | M45: 250 | N45: 250 | O45: 250 | P45: 250 | Q45: 250 | R45: =R50/20 -> 144.25
D46: Frequency | E46: =E51/100000 -> 0 | F46: =F51/100000 -> 0.02658 | G46: =G51/100000 -> 0.92308 | H46: =H51/50000 -> 0 | I46: =I51/50000 -> 0.05308 | J46: =J51/50000 -> 0.28454 | K46: =K51/50000 -> 0.26816 | L46: =L51/20000 -> 0 | M46: =M51/20000 -> 0 | N46: =N51/20000 -> 0 | O46: =O51/20000 -> 0 | P46: =P51/20000 -> 0 | Q46: =Q51/7000 -> 0 | R46: =R51/7000 -> 2.967142857
D47: Phase | E47: =E52 -> 180 | F47: =F52 -> 180 | G47: 180 | H47: 180 | I47: 185 | J47: 215 | K47: 180 | L47: 180 | M47: 180 | N47: 180 | O47: 180 | P47: 180 | Q47: 180 | R47: 240
B49: Copied from Sliders | E49: 1 | F49: 2 | G49: 3 | H49: 4 | I49: 5 | J49: 6 | K49: 7 | L49: 8 | M49: 9 | N49: 10 | O49: 11 | P49: 12 | Q49: 13 | R49: 14
D50: Amplitude | E50: =E33 -> 5000 | F50: =F33 -> 33000 | G50: 4327 | H50: =H33 -> 5000 | I50: 11827 | J50: 15000 | K50: 6635 | L50: 5000 | M50: 5000 | N50: 5000 | O50: 5000 | P50: 5000 | Q50: 5000 | R50: 2885
D51: Frequency | E51: =E34 -> 0 | F51: =F34 -> 2658 | G51: 92308 | H51: 0 | I51: 2654 | J51: 14227 | K51: 13408 | L51: 0 | M51: 0 | N51: 0 | O51: 0 | P51: 0 | Q51: 0 | R51: 20770
D52: Phase | E52: =E35 -> 180 | F52: =F35 -> 180 | G52: 180 | H52: 180 | I52: 185 | J52: 215 | K52: 180 | L52: 180 | M52: 180 | N52: 180 | O52: 180 | P52: 180 | Q52: 180 | R52: 240
B54: Adjusted Ready for Slider Range (copy/paste) | E54: 1 | F54: 2 | G54: 3 | H54: 4 | I54: 5 | J54: 6 | K54: 7 | L54: 8 | M54: 9 | N54: 10 | O54: 11 | P54: 12 | Q54: 13 | R54: 14
D55: Amplitude | E55: =E60*20 -> 22909.81754 | F55: =F60*20 -> 22614.58404 | G55: =G60*20 -> 7058.776312 | H55: 8934.595096 | I55: 6767.217941 | J55: 7644.101855 | K55: 5947.802617 | L55: 3748.559215 | M55: 2648.259697 | N55: 2242.564155 | O55: 3478.829235 | P55: 2963.269836 | Q55: 2140.028423 | R55: 3603.152833
D56: Frequency | E56: =E61*100000 -> 4687.5 | F56: =F61*100000 -> 9375 | G56: =G61*100000 -> 14062.5 | H56: =H61*50000 -> 9375 | I56: =I61*50000 -> 11718.75 | J56: =J61*50000 -> 14062.5 | K56: =K61*50000 -> 16406.25 | L56: =L61*20000 -> 7500 | M56: =M61*20000 -> 8437.5 | N56: 9375 | O56: 10312.5 | P56: 11250 | Q56: 12187.5 | R56: 13125
D57: Phase | E57: =E62 -> 180 | F57: =F62 -> 180 | G57: 180 | H57: 180 | I57: 180 | J57: 180 | K57: 180 | L57: 180 | M57: 180 | N57: 180 | O57: 180 | P57: 180 | Q57: 180 | R57: 180
B59: From Fourier Auto Generated | D59: ='FTSE Fourier'!J9 -> 21 year | E59: 1 | F59: 2 | G59: 3 | H59: 4 | I59: 5 | J59: 6 | K59: 7 | L59: 8 | M59: 9 | N59: 10 | O59: 11 | P59: 12 | Q59: 13 | R59: 14
D60: Amplitude | E60: ='FTSE Fourier'!$K13 -> 1145.490877 | F60: ='FTSE Fourier'!$K14 -> 1130.729202 | G60: ='FTSE Fourier'!$K15 -> 352.9388156 | H60: ='FTSE Fourier'!$K16 -> 446.7297548 | I60: ='FTSE Fourier'!$K17 -> 338.3608971 | J60: ='FTSE Fourier'!$K18 -> 382.2050928 | K60: ='FTSE Fourier'!$K19 -> 297.3901308 | L60: ='FTSE Fourier'!$K20 -> 187.4279607 | M60: ='FTSE Fourier'!$K21 -> 132.4129849 | N60: ='FTSE Fourier'!$K22 -> 112.1282077 | O60: ='FTSE Fourier'!$K23 -> 173.9414618 | P60: ='FTSE Fourier'!$K24 -> 148.1634918 | Q60: ='FTSE Fourier'!$K25 -> 107.0014211 | R60: ='FTSE Fourier'!$K26 -> 180.1576416
D61: Frequency | E61: ='FTSE Fourier'!$J13 -> 0.046875 | F61: ='FTSE Fourier'!$J14 -> 0.09375 | G61: ='FTSE Fourier'!$J15 -> 0.140625 | H61: ='FTSE Fourier'!$J16 -> 0.1875 | I61: ='FTSE Fourier'!$J17 -> 0.234375 | J61: ='FTSE Fourier'!$J18 -> 0.28125 | K61: ='FTSE Fourier'!$J19 -> 0.328125 | L61: ='FTSE Fourier'!$J20 -> 0.375 | M61: ='FTSE Fourier'!$J21 -> 0.421875 | N61: ='FTSE Fourier'!$J22 -> 0.46875 | O61: ='FTSE Fourier'!$J23 -> 0.515625 | P61: ='FTSE Fourier'!$J24 -> 0.5625 | Q61: ='FTSE Fourier'!$J25 -> 0.609375 | R61: ='FTSE Fourier'!$J26 -> 0.65625
D62: Phase | E62: 180 | F62: 180 | G62: 180 | H62: 180 | I62: 180 | J62: 180 | K62: 180 | L62: 180 | M62: 180 | N62: 180 | O62: 180 | P62: 180 | Q62: 180 | R62: 180
B64: Manually Recorded Dataet | D64: Amplitude | E64: 5000 | F64: 30000 | G64: 7212 | H64: 5000 | I64: 5000 | J64: 14712 | K64: 6635 | L64: 5000 | M64: 5000 | N64: 5000 | O64: 5000 | P64: 5000 | Q64: 5000 | R64: 3462
D65: Frequency | E65: 0 | F65: 2658 | G65: 92308 | H65: 0 | I65: 0 | J65: 14227 | K65: 13408 | L65: 0 | M65: 0 | N65: 0 | O65: 0 | P65: 0 | Q65: 0 | R65: 20770
D66: Phase | E66: 180 | F66: 180 | G66: 180 | H66: 180 | I66: 180 | J66: 190 | K66: 180 | L66: 180 | M66: 180 | N66: 180 | O66: 180 | P66: 180 | Q66: 180 | R66: 235
B68: Manually Best Dataet | D68: Amplitude | E68: 5000 | F68: 33000 | G68: 4327 | H68: 5000 | I68: 11827 | J68: 15000 | K68: 6635 | L68: 5000 | M68: 5000 | N68: 5000 | O68: 5000 | P68: 5000 | Q68: 5000 | R68: 2885
D69: Frequency | E69: 0 | F69: 2658 | G69: 92308 | H69: 0 | I69: 2654 | J69: 14227 | K69: 13408 | L69: 0 | M69: 0 | N69: 0 | O69: 0 | P69: 0 | Q69: 0 | R69: 20770
D70: Phase | E70: 180 | F70: 180 | G70: 180 | H70: 180 | I70: 185 | J70: 215 | K70: 180 | L70: 180 | M70: 180 | N70: 180 | O70: 180 | P70: 180 | Q70: 180 | R70: 240
B72: Reset Data Reset | D72: Amplitude | E72: 5000 | F72: 5000 | G72: 5000 | H72: 5000 | I72: 5000 | J72: 5000 | K72: 5000 | L72: 5000 | M72: 5000 | N72: 5000 | O72: 5000 | P72: 5000 | Q72: 5000 | R72: 5000
D73: Frequency | E73: 0 | F73: 0 | G73: 0 | H73: 0 | I73: 0 | J73: 0 | K73: 0 | L73: 0 | M73: 0 | N73: 0 | O73: 0 | P73: 0 | Q73: 0 | R73: 0
D74: Phase | E74: 180 | F74: 180 | G74: 180 | H74: 180 | I74: 180 | J74: 180 | K74: 180 | L74: 180 | M74: 180 | N74: 180 | O74: 180 | P74: 180 | Q74: 180 | R74: 180

Sheet 10 Yr Focus

Sheet Conceptural Guidance
G4: Conceptural Guidance to FATBOY
C8: The FTSE Index, also called FTSE 100 or, informally, the 'footsie', is a share index of the 100 most highly capitalised UK companies listed on
C9: the London Stock Exchange.
C11: The index is maintained by the FTSE Group, an independent company jointly owned by the Financial Times and the London Stock Exchange.
C12: Its name derives from the acronym of its two parent companies, but has since been registered as a limited company in its own right.
C13: The index began on 3rd January 1984 with a base level of 1000; the highest value reached to date is 6950.6, on 30 December 1999. After falling dramatically
C14: during the financial crisis of 2007-2010 to a low of below 3,500 in March 2009, the index has recovered since then by a significant margin to its curent level.
C16: It is the most widely used of the FTSE Group's indices, and is frequently reported (e.g. on UK news bulletins) as a measure of business prosperity.
C17: The FTSE rises and falls reflecting the state of the share of the top 100 companies. Knowing what the FTSE will do next can be very benificial.
C19: FATBOY (the: Fourier Transform Basic Operating sYstem- this spreadsheet) when combined with skill and judgement, facilates a
C20: mathematical assisted prediction (extrapolation) of the FTSE or any other collection of Share Price information.
C21: FATBOY works best on a portfilio of shares because psycological aspects become more predictable and fluctions due to iddviduals are reduced.
C23: Every waveform, (square, sine or even a waveform like the FTSE) can be created out of multiple sine waves. This is not the time to delve into the details, however,
C24: this spreadsheet enables you to add togeather up to 14 sine waves so that you can recreate the FTSE and hence, by simple extrapolation,
C25: attempt to predict what the FTSE will do next. | M25: ( http://en.wikipedia.org/wiki/Sine_wave )
C27: The analysis of a wave shape can be done using a technique called a Fast Fourier Transform. (or FFT) It is this FFT that can be used as a starting point
C28: to assist in plotting and charting the next 10 years of the FTSE. | M28: (http://en.wikipedia.org/wiki/Fft)

Sheet Procedural Help
D51: One method for trying to match the red line to the blue line is as follows:
D53: 1. First, Delete all the data in the Share Price sheet and enter as much Share Price data as possible making sure you match the Dates
D55: 2. Now to start trying to predict going-forward, Reset all Slider data by Clicking one of the 'Top' Yellow buttons on the Slider screen.
D57: 3. Now start at Slider one and set the Amplitude to nearly half level.
D59: 4. Then, and do this slowly, adjust the Frequency to give a basic match.
D61: 5. The re-adjust the amplitude value, then do the same to Slider 2 & adjust the amplitude sliders of all the sine waves to obtain a better match.
D63: 6. Then change the phase of the sine waves to obtain a best-fit.
D65: 7. Now comes the tricky bit.
D66: Identify the worst part of the red line, the part that fits the worst and
D67: identify the sine wave that has a major contribution to that poor fit
D68: adjust the sine wave values as necessary.
D70: NOTE:
D72: When you have a goodish fit click the middle left hand or right hand yellow button to save the values.
D73: clicking on the bottom yellow buttons will return you to the values previously saved.
D75: All the best.
D77: The FATBOY Team

Sheet Perspective

Sheet Calculations
G1: Calculations Tab
C2: No User Input on this page
D3: 1 | E3: 2 | F3: 3 | G3: 4 | H3: 5 | I3: 6 | J3: 7 | K3: 8 | L3: 9 | M3: 10 | N3: 11 | O3: 12 | P3: 13 | Q3: 14
C4: Volume | D4: =IF(D6>0,D5,0) -> 0 | E4: 1650 | F4: 216.35 | G4: 0 | H4: 591.35 | I4: 750 | J4: 331.75 | K4: 0 | L4: 0 | M4: 0 | N4: 0 | O4: 0 | P4: 0 | Q4: 144.25 | U4: =SUM(D4:S4) -> 3683.7
B5: 0-1 | C5: M or Amplitude | D5: ='FATBOY Sliders'!E45 -> 250 | E5: ='FATBOY Sliders'!F45 -> 1650 | F5: ='FATBOY Sliders'!G45 -> 216.35 | G5: ='FATBOY Sliders'!H45 -> 250 | H5: ='FATBOY Sliders'!I45 -> 591.35 | I5: ='FATBOY Sliders'!J45 -> 750 | J5: ='FATBOY Sliders'!K45 -> 331.75 | K5: ='FATBOY Sliders'!L45 -> 250 | L5: ='FATBOY Sliders'!M45 -> 250 | M5: ='FATBOY Sliders'!N45 -> 250 | N5: ='FATBOY Sliders'!O45 -> 250 | O5: ='FATBOY Sliders'!P45 -> 250 | P5: ='FATBOY Sliders'!Q45 -> 250 | Q5: ='FATBOY Sliders'!R45 -> 144.25 | R5: ='FATBOY Sliders'!S45 -> 0 | U5: =U4*0.000001 -> 0.0036837
C6: Frequency | D6: ='FATBOY Sliders'!E46 -> 0 | E6: ='FATBOY Sliders'!F46 -> 0.02658 | F6: ='FATBOY Sliders'!G46 -> 0.92308 | G6: ='FATBOY Sliders'!H46 -> 0 | H6: ='FATBOY Sliders'!I46 -> 0.05308 | I6: ='FATBOY Sliders'!J46 -> 0.28454 | J6: ='FATBOY Sliders'!K46 -> 0.26816 | K6: ='FATBOY Sliders'!L46 -> 0 | L6: ='FATBOY Sliders'!M46 -> 0 | M6: ='FATBOY Sliders'!N46 -> 0 | N6: ='FATBOY Sliders'!O46 -> 0 | O6: ='FATBOY Sliders'!P46 -> 0 | P6: ='FATBOY Sliders'!Q46 -> 0 | Q6: ='FATBOY Sliders'!R46 -> 2.967142857 | R6: ='FATBOY Sliders'!S46 -> 0
B7: 0-360 | C7: Phase | D7: ='FATBOY Sliders'!E47 -> 180 | E7: ='FATBOY Sliders'!F47 -> 180 | F7: ='FATBOY Sliders'!G47 -> 180 | G7: ='FATBOY Sliders'!H47 -> 180 | H7: ='FATBOY Sliders'!I47 -> 185 | I7: ='FATBOY Sliders'!J47 -> 215 | J7: ='FATBOY Sliders'!K47 -> 180 | K7: ='FATBOY Sliders'!L47 -> 180 | L7: ='FATBOY Sliders'!M47 -> 180 | M7: ='FATBOY Sliders'!N47 -> 180 | N7: ='FATBOY Sliders'!O47 -> 180 | O7: ='FATBOY Sliders'!P47 -> 180 | P7: ='FATBOY Sliders'!Q47 -> 180 | Q7: ='FATBOY Sliders'!R47 -> 240 | R7: ='FATBOY Sliders'!S47 -> 0
C8: +C | D8: =IF(D6>0,D5*1.414,0) -> 0 | E8: =IF(E6>0,E5*1.414,0) -> 2333.1 | F8: =IF(F6>0,F5*1.414,0) -> 305.9189 | G8: 0 | H8: 836.1689 | I8: 1060.5 | J8: 469.0945 | K8: 0 | L8: 0 | M8: 0 | N8: 0 | O8: 0 | P8: 0 | Q8: 203.9695 | R8: 0
T9: Formulate chart | U9: Forcast chart
A10: Month | B10: Days | C10: Degrees | D10: A1 | E10: B2 | F10: C3 | G10: D4 | H10: E5 | I10: F6 | J10: G7 | K10: H8 | L10: J9 | M10: K10 | N10: L11 | O10: M12 | P10: N13 | Q10: P14 | R10: FTSE | S10: Q-ToDay | T10: Form | U10: ForcasT
A11: 10 | B11: 1990-10-01 | C11: 0 | D11: =(SIN(($C11*PI()/180*D$6+D$7*PI()/180))*D$5)+D$5 -> 250 | E11: =(SIN(($C11*PI()/180*E$6+E$7*PI()/180))*E$5)+E$5 -> 1650 | F11: 216.35 | G11: 250 | H11: 539.8104515 | I11: 319.8176727 | J11: 331.75 | K11: 250 | L11: 250 | M11: 250 | N11: 250 | O11: 250 | P11: 250 | Q11: 19.3258355 | R11: =IF('Share Price Input'!H12>1,'Share Price Input'!H12,NA()) -> 2006 | S11: =IF(R11>0,0,R10) -> 0 | T11: =IF(R11>0,U11,0) -> 5077.050276 | U11: =SUM(D11:Q11)-$U$5 -> 5077.050276 | V11: =U11-$U$5 -> 5077.046592
A12: 11 | B12: 1990-11-01 | C12: =C11+360/12 -> 30 | D12: 250 | E12: 1627.03727 | F12: 115.8068331 | G12: 250 | H12: 523.4598365 | I12: 233.3904476 | J12: 285.3224645 | K12: 250 | L12: 250 | M12: 250 | N12: 250 | O12: 250 | P12: 250 | Q12: 69.9865891 | R12: =IF('Share Price Input'!H13>1,'Share Price Input'!H13,NA()) -> 2050 | S12: 0 | T12: =IF(R12>0,U12,0) -> 4854.999757 | U12: =SUM(D12:Q12)-$U$5 -> 4854.999757 | V12: 4854.996073
A13: 12 | B13: 1990-12-01 | C13: =C12+360/12 -> 60 | D13: 250 | E13: 1604.078987 | F13: 38.29704461 | G13: 250 | H13: 507.1616584 | I13: 158.4089359 | J13: 239.8087209 | K13: 250 | L13: 250 | M13: 250 | N13: 250 | O13: 250 | P13: 250 | Q13: 266.6190411 | R13: =IF('Share Price Input'!H14>1,'Share Price Input'!H14,NA()) -> 2149 | S13: 0 | T13: 4814.370704 | U13: 4814.370704 | V13: 4814.367021
A14: 1 | B14: 1991-01-01 | C14: 90 | D14: 250 | E14: 1581.129599 | F14: 1.57730905 | G14: 250 | H14: 490.9285057 | I14: 96.53438615 | J14: 196.1045755 | K14: 250 | L14: 250 | M14: 250 | N14: 250 | O14: 250 | P14: 250 | Q14: 222.7236673 | R14: =IF('Share Price Input'!H15>1,'Share Price Input'!H15,NA()) -> 2144 | S14: 0 | T14: 4588.994359 | U14: 4588.994359 | V14: 4588.990675
A15: 2 | B15: 1991-02-01 | C15: 120 | D15: 250 | E15: 1558.19355 | F15: 14.0597303 | G15: 250 | H15: 474.7729167 | I15: 49.13765637 | J15: 155.0702181 | K15: 250 | L15: 250 | M15: 250 | N15: 250 | O15: 250 | P15: 250 | Q15: 24.58094136 | R15: =IF('Share Price Input'!H16>1,'Share Price Input'!H16,NA()) -> 2177 | S15: 0 | T15: 4275.811329 | U15: 4275.811329 | V15: 4275.807645
A16: 3 | B16: 1991-03-01 | C16: 150 | D16: 250 | E16: 1535.275282 | F16: 72.88471738 | G16: 250 | H16: 458.7073694 | I16: 17.26884213 | J16: 117.5132914 | K16: 250 | L16: 250 | M16: 250 | N16: 250 | O16: 250 | P16: 250 | Q16: 61.65897245 | R16: =IF('Share Price Input'!H17>1,'Share Price Input'!H17,NA()) -> 2381 | S16: 0 | T16: 4263.304792 | U16: 4263.304792 | V16: 4263.301108
A17: 4 | B17: 1991-04-01 | C17: 180 | D17: 250 | E17: 1512.379236 | F17: 164.5760866 | G17: 250 | H17: 442.7442727 | I17: 1.6340111 | J17: 84.17299497 | K17: 250 | L17: 250 | M17: 250 | N17: 250 | O17: 250 | P17: 250 | Q17: 261.0774134 | R17: =IF('Share Price Input'!H18>1,'Share Price Input'!H18,NA()) -> 2457 | S17: 0 | T17: 4466.580331 | U17: 4466.580331 | V17: 4466.576647
A18: 5 | B18: 1991-05-01 | C18: 210 | D18: 250 | E18: 1489.509844 | F18: 268.128313 | G18: 250 | H18: 426.8959561 | I18: 2.579559896 | J18: 55.70553611 | K18: 250 | L18: 250 | M18: 250 | N18: 250 | O18: 250 | P18: 250 | Q18: 230.8606175 | R18: =IF('Share Price Input'!H19>1,'Share Price Input'!H19,NA()) -> 2486 | S18: 0 | T18: 4473.676143 | U18: 4473.676143 | V18: 4473.67246
A19: 6 | B19: 1991-06-01 | C19: 240 | D19: 250 | E19: 1466.671538 | F19: 359.8186743 | G19: 250 | H19: 411.1746605 | I19: 20.08453946 | J19: 32.67121445 | K19: 250 | L19: 250 | M19: 250 | N19: 250 | O19: 250 | P19: 250 | Q19: 30.40253077 | R19: =IF('Share Price Input'!H20>1,'Share Price Input'!H20,NA()) -> 2500 | S19: 0 | T19: 4320.819474 | U19: 4320.819474 | V19: 4320.81579
A20: 7 | B20: 1991-07-01 | C20: 270 | D20: 250 | E20: 1443.86874 | F20: 418.6418765 | G20: 250 | H20: 395.5925288 | I20: 53.76111923 | J20: 15.52339402 | K20: 250 | L20: 250 | M20: 250 | N20: 250 | O20: 250 | P20: 250 | Q20: 53.72232117 | R20: =IF('Share Price Input'!H21>1,'Share Price Input'!H21,NA()) -> 2415 | S20: 0 | T20: 4381.106296 | U20: 4381.106296 | V20: 4381.102612
A21: 8 | B21: 1991-08-01 | C21: 300 | D21: 250 | E21: 1421.105867 | F21: 431.1221447 | G21: 250 | H21: 380.1615963 | I21: 102.8631797 | J21: 4.599580085 | K21: 250 | L21: 250 | M21: 250 | N21: 250 | O21: 250 | P21: 250 | Q21: 254.9827538 | R21: =IF('Share Price Input'!H22>1,'Share Price Input'!H22,NA()) -> 2589 | S21: 0 | T21: 4594.831437 | U21: 4594.831437 | V21: 4594.827754
A22: 9 | B22: 1991-09-01 | C22: 330 | D22: 250 | E22: 1398.387327 | F22: 394.4003813 | G22: 250 | H22: 364.8937816 | I22: 166.3028429 | J22: 0.1147763469 | K22: 250 | L22: 250 | M22: 250 | N22: 250 | O22: 250 | P22: 250 | Q22: 238.5875746 | R22: =IF('Share Price Input'!H23>1,'Share Price Input'!H23,NA()) -> 2646 | S22: 0 | T22: 4562.683 | U22: 4562.683 | V22: 4562.679316
A23: 10 | B23: 1991-10-01 | C23: 360 | D23: 250 | E23: 1375.717522 | F23: 316.8891547 | G23: 250 | H23: 349.8008771 | I23: 242.674575 | J23: 2.157253198 | K23: 250 | L23: 250 | M23: 250 | N23: 250 | O23: 250 | P23: 250 | Q23: 36.76304576 | R23: =IF('Share Price Input'!H24>1,'Share Price Input'!H24,NA()) -> 2622 | S23: 0 | T23: 4323.998744 | U23: 4323.998744 | V23: 4323.99506
A24: 11 | B24: 1991-11-01 | C24: 390 | D24: 250 | E24: 1353.100841 | F24: 216.3454688 | G24: 250 | H24: 334.8945404 | I24: 330.2863266 | J24: 10.68681039 | K24: 250 | L24: 250 | M24: 250 | N24: 250 | O24: 250 | P24: 250 | Q24: 46.2142054 | R24: =IF('Share Price Input'!H25>1,'Share Price Input'!H25,NA()) -> 2566 | S24: 0 | T24: 4291.524509 | U24: 4291.524509 | V24: 4291.520825
A25: 12 | B25: 1991-12-01 | C25: 420 | D25: 250 | E25: 1330.541666 | F25: 115.8028209 | G25: 250 | H25: 320.1862848 | I25: 427.1970204 | J25: 25.53556824 | K25: 250 | L25: 250 | M25: 250 | N25: 250 | O25: 250 | P25: 250 | Q25: 248.3639129 | R25: =IF('Share Price Input'!H26>1,'Share Price Input'!H26,NA()) -> 2420 | S25: 0 | T25: 4467.62359 | U25: 4467.62359 | V25: 4467.619906
A26: 1 | B26: 1992-01-01 | C26: 450 | D26: 250 | E26: 1308.044366 | F26: 38.29447063 | G26: 250 | H26: 305.6874706 | I26: 531.2595572 | J26: 46.41127189 | K26: 250 | L26: 250 | M26: 250 | N26: 250 | O26: 250 | P26: 250 | Q26: 245.867961 | R26: =IF('Share Price Input'!H27>1,'Share Price Input'!H27,NA()) -> 2493 | S26: 0 | T26: 4475.561414 | U26: 4475.561414 | V26: 4475.55773
A27: 2 | B27: 1992-02-01 | C27: 480 | D27: 250 | E27: =(SIN(($C27*PI()/180*E$6+E$7*PI()/180))*E$5)+E$5 -> 1285.613298 | F27: 1.57676294 | G27: 250 | H27: 291.4092966 | I27: 640.1683853 | J27: 72.90304346 | K27: 250 | L27: 250 | M27: 250 | N27: 250 | O27: 250 | P27: 250 | Q27: 43.63237725 | R27: =IF('Share Price Input'!H28>1,'Share Price Input'!H28,NA()) -> 2571 | S27: 0 | T27: 4335.29948 | U27: 4335.29948 | V27: 4335.295796
A28: 3 | B28: 1992-03-01 | C28: 510 | D28: 250 | E28: 1263.252807 | F28: 14.06133716 | G28: 250 | H28: 277.3627908 | I28: 751.5105814 | J28: 104.489469 | K28: 250 | L28: 250 | M28: 250 | N28: 250 | O28: 250 | P28: 250 | Q28: 39.17016668 | R28: =IF('Share Price Input'!H29>1,'Share Price Input'!H29,NA()) -> 2562 | S28: 0 | T28: 4449.843469 | U28: 4449.843469 | V28: 4449.839785
A29: 4 | B29: 1992-04-01 | C29: 540 | D29: 250 | E29: 1240.967224 | F29: 72.88810911 | G29: 250 | H29: 263.5588024 | I29: 862.81931 | J29: 140.5488611 | K29: 250 | L29: 250 | M29: 250 | N29: 250 | O29: 250 | P29: 250 | Q29: 241.2522227 | R29: =IF('Share Price Input'!H30>1,'Share Price Input'!H30,NA()) -> 2440 | S29: 0 | T29: 4822.030846 | U29: 4822.030846 | V29: 4822.027162
A30: 5 | B30: 1992-05-01 | C30: 570 | D30: 250 | E30: 1218.760866 | F30: 164.5804862 | G30: 250 | H30: 250.0079936 | I30: 971.6284768 | J30: 180.3714948 | K30: 250 | L30: 250 | M30: 250 | N30: 250 | O30: 250 | P30: 250 | Q30: 252.6673134 | R30: =IF('Share Price Input'!H31>1,'Share Price Input'!H31,NA()) -> 2654 | S30: 0 | T30: 5038.012947 | U30: 5038.012947 | V30: 5038.009263
A31: 6 | B31: 1992-06-01 | C31: 600 | D31: 250 | E31: 1196.638032 | F31: 268.1327125 | G31: 250 | H31: 236.7208305 | I31: 1075.527367 | J31: 223.1735768 | K31: 250 | L31: 250 | M31: 250 | N31: 250 | O31: 250 | P31: 250 | Q31: 50.97800752 | R31: =IF('Share Price Input'!H32>1,'Share Price Input'!H32,NA()) -> 2708 | S31: 0 | T31: 5051.166842 | U31: 5051.166842 | V31: 5051.163159
A32: 7 | B32: 1992-07-01 | C32: 630 | D32: 250 | E32: 1174.603009 | F32: 359.8220659 | G32: 250 | H32: 223.7075759 | I32: 1172.214053 | J32: 268.1126717 | K32: 250 | L32: 250 | M32: 250 | N32: 250 | O32: 250 | P32: 250 | Q32: 32.62354975 | R32: =IF('Share Price Input'!H33>1,'Share Price Input'!H33,NA()) -> 2521 | S32: 0 | T32: 5231.079242 | U32: 5231.079242 | V32: 5231.075558
A33: 8 | B33: 1992-08-01 | C33: 660 | D33: 250 | E33: 1152.660064 | F33: 418.6434832 | G33: 250 | H33: 210.9782811 | I33: 1259.546401 | J33: 314.3042835 | K33: 250 | L33: 250 | M33: 250 | N33: 250 | O33: 250 | P33: 250 | Q33: 233.681348 | R33: =IF('Share Price Input'!H34>1,'Share Price Input'!H34,NA()) -> 2400 | S33: 0 | T33: 5589.810177 | U33: 5589.810177 | V33: 5589.806493
A34: 9 | B34: 1992-09-01 | C34: 690 | D34: 250 | E34: 1130.813447 | F34: 431.1215984 | G34: 250 | H34: 198.5427778 | I34: 1335.589522 | J34: 360.8392637 | K34: 250 | L34: 250 | M34: 250 | N34: 250 | O34: 250 | P34: 250 | Q34: 258.9534451 | R34: =IF('Share Price Input'!H35>1,'Share Price Input'!H35,NA()) -> 2313 | S34: 0 | T34: 5715.856371 | U34: 5715.856371 | V34: 5715.852687
A35: 10 | B35: 1992-10-01 | C35: 720 | D35: 250 | E35: 1109.06739 | F35: 394.3978072 | G35: 250 | H35: 186.4106711 | I35: 1398.658649 | J35: 406.8017059 | K35: 250 | L35: 250 | M35: 250 | N35: 250 | O35: 250 | P35: 250 | Q35: 58.7651642 | R35: =IF('Share Price Input'!H36>1,'Share Price Input'!H36,NA()) -> 2553 | S35: 0 | T35: 5554.097704 | U35: 5554.097704 | V35: 5554.09402
A36: 11 | B36: 1992-11-01 | C36: 750 | D36: 250 | E36: 1087.426105 | F36: 316.8851424 | G36: 250 | H36: 174.5913315 | I36: 1447.356455 | J36: 451.2869723 | K36: 250 | L36: 250 | M36: 250 | N36: 250 | O36: 250 | P36: 250 | Q36: 26.60534465 | R36: =IF('Share Price Input'!H37>1,'Share Price Input'!H37,NA()) -> 2658 | S36: 0 | T36: 5504.147667 | U36: 5504.147667 | V36: 5504.143983
A37: 12 | B37: 1992-12-01 | C37: 780 | D37: 250 | E37: =(SIN(($C37*PI()/180*E$6+E$7*PI()/180))*E$5)+E$5 -> 1065.893782 | F37: 216.3409376 | G37: 250 | H37: 163.093888 | I37: 1480.604021 | J37: 493.4194989 | K37: 250 | L37: 250 | M37: 250 | N37: 250 | O37: 250 | P37: 250 | Q37: 225.6871276 | R37: =IF('Share Price Input'!H38>1,'Share Price Input'!H38,NA()) -> 2779 | S37: 0 | T37: 5645.035572 | U37: 5645.035572 | V37: 5645.031888
A38: 1 | B38: 1993-01-01 | C38: 810 | D38: 250 | E38: 1044.474593 | F38: 115.7988088 | G38: 250 | H38: 151.927221 | I38: 1497.664731 | J38: 532.3700289 | K38: 250 | L38: 250 | M38: 250 | N38: 250 | O38: 250 | P38: 250 | Q38: 264.6965993 | R38: =IF('Share Price Input'!H39>1,'Share Price Input'!H39,NA()) -> 2847 | S38: 0 | T38: 5606.928299 | U38: 5606.928299 | V38: 5606.924615
A39: 2 | B39: 1993-02-01 | C39: 840 | D39: 250 | E39: 1023.172687 | F39: 38.29189673 | G39: 250 | H39: 141.0999555 | I39: 1498.160598 | J39: 567.3719335 | K39: 250 | L39: 250 | M39: 250 | N39: 250 | O39: 250 | P39: 250 | Q39: 66.95698482 | R39: =IF('Share Price Input'!H40>1,'Share Price Input'!H40,NA()) -> 2807 | S39: 0 | T39: 5335.050372 | U39: 5335.050372 | V39: 5335.046689
A40: 3 | B40: 1993-03-01 | C40: 870 | D40: 250 | E40: 1001.992189 | F40: 1.576216925 | G40: 250 | H40: 130.6204541 | I40: 1482.080636 | J40: 597.7363017 | K40: 250 | L40: 250 | M40: 250 | N40: 250 | O40: 250 | P40: 250 | Q40: 21.14404008 | R40: =IF('Share Price Input'!H41>1,'Share Price Input'!H41,NA()) -> 2868 | S40: 0 | T40: 5235.146154 | U40: 5235.146154 | V40: 5235.14247
A41: 4 | B41: 1993-04-01 | C41: 900 | D41: 250 | E41: 980.9372014 | F41: 14.06294412 | G41: 250 | H41: 120.4968112 | I41: 1449.781103 | J41: 622.8654985 | K41: 250 | L41: 250 | M41: 250 | N41: 250 | O41: 250 | P41: 250 | Q41: 217.3074042 | R41: =IF('Share Price Input'!H42>1,'Share Price Input'!H42,NA()) -> 2879 | S41: 0 | T41: 5405.447279 | U41: 5405.447279 | V41: 5405.443595
A42: 5 | B42: 1993-05-01 | C42: 930 | D42: 250 | E42: 960.0118025 | F42: 72.8915009 | G42: 250 | H42: 110.7368459 | I42: 1401.97761 | J42: 642.2649283 | K42: 250 | L42: 250 | M42: 250 | N42: 250 | O42: 250 | P42: 250 | Q42: 269.8695892 | R42: =IF('Share Price Input'!H43>1,'Share Price Input'!H43,NA()) -> 1831 | S42: 0 | T42: 5457.748593 | U42: 5457.748593 | V42: 5457.744909
A43: 6 | B43: 1993-06-01 | C43: 960 | D43: 250 | E43: 939.2200453 | F43: 164.5848858 | G43: 250 | H43: 101.3480967 | I43: 1339.729264 | J43: 655.5527695 | K43: 250 | L43: 250 | M43: 250 | N43: 250 | O43: 250 | P43: 250 | Q43: 75.51469134 | R43: =IF('Share Price Input'!H44>1,'Share Price Input'!H44,NA()) -> 2841 | S43: 0 | T43: 5275.946069 | U43: 5275.946069 | V43: 5275.942385
A44: 7 | B44: 1993-07-01 | C44: 990 | D44: 250 | E44: 918.5659568 | F44: 268.137112 | G44: 250 | H44: 92.33781522 | I44: 1264.415206 | J44: 662.4674893 | K44: 250 | L44: 250 | M44: 250 | N44: 250 | O44: 250 | P44: 250 | Q44: 16.26548849 | R44: =IF('Share Price Input'!H45>1,'Share Price Input'!H45,NA()) -> 2900 | S44: 0 | T44: 5222.185384 | U44: 5222.185384 | V44: 5222.1817
A45: 8 | B45: 1993-08-01 | C45: 1020 | D45: =(SIN(($C45*PI()/180*D$6+D$7*PI()/180))*D$5)+D$5 -> 250 | E45: 898.0535375 | F45: 359.8254574 | G45: 250 | H45: 83.71296088 | I45: 1177.70405 | J45: 662.8729915 | K45: 250 | L45: 250 | M45: 250 | N45: 250 | O45: 250 | P45: 250 | Q45: 208.5818451 | R45: =IF('Share Price Input'!H46>1,'Share Price Input'!H46,NA()) -> 2926 | S45: 0 | T45: 5390.747159 | U45: 5390.747159 | V45: 5390.743475
A46: 9 | B46: 1993-09-01 | C46: 1050 | D46: 250 | E46: 877.6867604 | F46: 418.6450898 | G46: 250 | H46: 75.48019533 | I46: 1081.516922 | J46: 656.7612949 | K46: 250 | L46: 250 | M46: 250 | N46: 250 | O46: 250 | P46: 250 | Q46: 274.4479273 | R46: =IF('Share Price Input'!H47>1,'Share Price Input'!H47,NA()) -> 3100 | S46: 0 | T46: 5384.534506 | U46: 5384.534506 | V46: 5384.530823
A47: 10 | B47: 1993-10-01 | C47: 1080 | D47: 250 | E47: =(SIN(($C47*PI()/180*E$6+E$7*PI()/180))*E$5)+E$5 -> 857.4695702 | F47: 431.1210521 | G47: 250 | H47: 67.64587738 | I47: 977.9848903 | J47: 644.2526906 | K47: 250 | L47: 250 | M47: 250 | N47: 250 | O47: 250 | P47: 250 | Q47: 84.39777371 | R47: =IF('Share Price Input'!H48>1,'Share Price Input'!H48,NA()) -> 3037 | S47: 0 | T47: 5062.868171 | U47: 5062.868171 | V47: 5062.864487
A48: 11 | B48: 1993-11-01 | C48: 1110 | D48: 250 | E48: 837.4058827 | F48: 394.395233 | G48: 250 | H48: 60.21605812 | I48: 869.4017521 | J48: 625.5933743 | K48: 250 | L48: 250 | M48: 250 | N48: 250 | O48: 250 | P48: 250 | Q48: 11.99278373 | R48: =IF('Share Price Input'!H49>1,'Share Price Input'!H49,NA()) -> 3171 | S48: 0 | T48: 4799.0014 | U48: 4799.0014 | V48: 4798.997717
A49: 12 | B49: 1993-12-01 | C49: 1140 | D49: 250 | E49: 817.4995841 | F49: 316.8811301 | G49: 250 | H49: 53.19647618 | I49: 758.1732151 | J49: 601.1506007 | K49: 250 | L49: 250 | M49: 250 | N49: 250 | O49: 250 | P49: 250 | Q49: 199.5517551 | R49: =IF('Share Price Input'!H50>1,'Share Price Input'!H50,NA()) -> 3167 | S49: 0 | T49: 4746.449078 | U49: 4746.449078 | V49: 4746.445394
A50: 1 | B50: 1994-01-01 | C50: 1170 | D50: 250 | E50: 797.7545298 | F50: 216.3364063 | G50: 250 | H50: 46.59255335 | I50: 646.7635969 | J50: 571.4054552 | K50: 250 | L50: 250 | M50: 250 | N50: 250 | O50: 250 | P50: 250 | Q50: 278.4099407 | R50: =IF('Share Price Input'!H51>1,'Share Price Input'!H51,NA()) -> 3418 | S50: 0 | T50: 4557.258799 | U50: 4557.258799 | V50: 4557.255115
A51: 2 | B51: 1994-02-01 | C51: 1200 | D51: 250 | E51: 778.1745444 | F51: 115.7947967 | G51: 250 | H51: 40.40939038 | I51: 537.641227 | J51: 536.9433849 | K51: 250 | L51: 250 | M51: 250 | N51: 250 | O51: 250 | P51: 250 | Q51: 93.56418163 | R51: =IF('Share Price Input'!H52>1,'Share Price Input'!H52,NA()) -> 3492 | S51: 0 | T51: 4102.523841 | U51: 4102.523841 | V51: 4102.520158
A52: 3 | B52: 1994-03-01 | C52: 1230 | D52: 250 | E52: 758.76342 | F52: 38.28932291 | G52: 250 | H52: 34.65176301 | I52: 433.2237597 | J52: 498.442676 | K52: 250 | L52: 250 | M52: 250 | N52: 250 | O52: 250 | P52: 250 | Q52: 8.346151725 | R52: =IF('Share Price Input'!H53>1,'Share Price Input'!H53,NA()) -> 3328 | S52: 0 | T52: 3771.71341 | U52: 3771.71341 | V52: 3771.709726
A53: 4 | B53: 1994-04-01 | C53: 1260 | D53: 250 | E53: 739.5249165 | F53: 1.575671003 | G53: 250 | H53: 29.32411832 | I53: 335.8246102 | J53: 456.6611037 | K53: 250 | L53: 250 | M53: 250 | N53: 250 | O53: 250 | P53: 250 | Q53: 190.2598804 | R53: =IF('Share Price Input'!H54>1,'Share Price Input'!H54,NA()) -> 3086 | S53: 0 | T53: 3753.166616 | U53: 3753.166616 | V53: 3753.162933
A54: 5 | B54: 1994-05-01 | C54: 1290 | D54: 250 | E54: 720.4627601 | F54: 14.06455116 | G54: 250 | H54: 24.43057128 | I54: 247.6016999 | J54: 412.4210175 | K54: 250 | L54: 250 | M54: 250 | N54: 250 | O54: 250 | P54: 250 | Q54: 281.7368744 | R54: =IF('Share Price Input'!H55>1,'Share Price Input'!H55,NA()) -> 3125 | S54: 0 | T54: 3700.713791 | U54: 3700.713791 | V54: 3700.710107
A55: 6 | B55: 1994-06-01 | C55: 1320 | D55: 250 | E55: 701.5806428 | F55: 72.89489275 | G55: 250 | H55: 19.97490157 | I55: 170.5096464 | J55: 366.5931555 | K55: 250 | L55: 250 | M55: 250 | N55: 250 | O55: 250 | P55: 250 | Q55: 102.9705236 | R55: =IF('Share Price Input'!H56>1,'Share Price Input'!H56,NA()) -> 2971 | S55: 0 | T55: 3434.520079 | U55: 3434.520079 | V55: 3434.516395
A56: 7 | B56: 1994-07-01 | C56: 1350 | D56: 250 | E56: 682.8822219 | F56: 164.5892854 | G56: 250 | H56: 15.96055066 | I56: 106.2564582 | J56: 320.0795068 | K56: 250 | L56: 250 | M56: 250 | N56: 250 | O56: 250 | P56: 250 | Q56: 5.342854716 | R56: =IF('Share Price Input'!H57>1,'Share Price Input'!H57,NA()) -> 2919 | S56: 0 | T56: 3295.107194 | U56: 3295.107194 | V56: 3295.10351
A57: 8 | B57: 1994-08-01 | C57: 1380 | D57: 250 | E57: =(SIN(($C57*PI()/180*E$6+E$7*PI()/180))*E$5)+E$5 -> 664.371119 | F57: 268.1415115 | G57: 250 | H57: 12.39061915 | I57: 56.26569321 | J57: 273.7955579 | K57: 250 | L57: 250 | M57: 250 | N57: 250 | O57: 250 | P57: 250 | Q57: 180.7502063 | R57: =IF('Share Price Input'!H58>1,'Share Price Input'!H58,NA()) -> 3083 | S57: 0 | T57: 3455.711023 | U57: 3455.711023 | V57: 3455.70734
A58: 9 | B58: 1994-09-01 | C58: 1410 | D58: 250 | E58: 646.0509195 | F58: 359.8288489 | G58: 250 | H58: 9.267864382 | I58: 21.64491893 | J58: 228.6522747 | K58: 250 | L58: 250 | M58: 250 | N58: 250 | O58: 250 | P58: 250 | Q58: 284.4129795 | R58: =IF('Share Price Input'!H59>1,'Share Price Input'!H59,NA()) -> 3251 | S58: 0 | T58: 3549.854122 | U58: 3549.854122 | V58: 3549.850439
A59: 10 | B59: 1994-10-01 | C59: 1440 | D59: 250 | E59: 627.9251718 | F59: 418.6466963 | G59: 250 | H59: 6.59469832 | I59: 3.161173951 | J59: 185.5381722 | K59: 250 | L59: 250 | M59: 250 | N59: 250 | O59: 250 | P59: 250 | Q59: 112.5722723 | R59: =IF('Share Price Input'!H60>1,'Share Price Input'!H60,NA()) -> 3026 | S59: 0 | T59: 3354.434501 | U59: 3354.434501 | V59: 3354.430817
A60: 11 | B60: 1994-11-01 | C60: 1470 | D60: 250 | E60: 609.9973865 | F60: 431.1205056 | G60: 250 | H60: 4.373185659 | I60: 1.223973826 | J60: 145.3018268 | K60: 250 | L60: 250 | M60: 250 | N60: 250 | O60: 250 | P60: 250 | Q60: 2.997109568 | R60: =IF('Share Price Input'!H61>1,'Share Price Input'!H61,NA()) -> 3097 | S60: 0 | T60: 3195.010304 | U60: 3195.010304 | V60: 3195.00662
A61: 12 | B61: 1994-12-01 | C61: 1500 | D61: 250 | E61: 592.2710361 | F61: 394.3926587 | G61: 250 | H61: 2.605042253 | I61: 15.87623808 | J61: 108.7351746 | K61: 250 | L61: 250 | M61: 250 | N61: 250 | O61: 250 | P61: 250 | Q61: 171.0677493 | R61: =IF('Share Price Input'!H62>1,'Share Price Input'!H62,NA()) -> 3081 | S61: 0 | T61: 3284.944215 | U61: 3284.944215 | V61: 3284.940532
A62: 1 | B62: 1995-01-01 | C62: 1530 | D62: 250 | E62: 574.7495539 | F62: 316.8771178 | G62: 250 | H62: 1.29163378 | I62: 46.79333931 | J62: 76.55792453 | K62: 250 | L62: 250 | M62: 250 | N62: 250 | O62: 250 | P62: 250 | Q62: 286.4255879 | R62: =IF('Share Price Input'!H63>1,'Share Price Input'!H63,NA()) -> 3066 | S62: 0 | T62: 3302.691473 | U62: 3302.691473 | V62: 3302.68779
A63: 2 | B63: 1995-02-01 | C63: 1560 | D63: 250 | E63: 557.4363336 | F63: 216.3318751 | G63: 250 | H63: 0.4339746906 | I63: 93.29029546 | J63: 49.40339267 | K63: 250 | L63: 250 | M63: 250 | N63: 250 | O63: 250 | P63: 250 | Q63: 122.3239755 | R63: =IF('Share Price Input'!H64>1,'Share Price Input'!H64,NA()) -> 2992 | S63: 0 | T63: 3039.216163 | U63: 3039.216163 | V63: 3039.21248
A64: 3 | B64: 1995-03-01 | C64: 1590 | D64: 250 | E64: 540.3347285 | F64: 115.7907847 | G64: 250 | H64: 0.03272742392 | I64: 154.3369459 | J64: 27.80603748 | K64: 250 | L64: 250 | M64: 250 | N64: 250 | O64: 250 | P64: 250 | Q64: 1.320020454 | R64: =IF('Share Price Input'!H65>1,'Share Price Input'!H65,NA()) -> 3009 | S64: 0 | T64: 2839.617561 | U64: 2839.617561 | V64: 2839.613877
A65: 4 | B65: 1995-04-01 | C65: 1620 | D65: 250 | E65: 523.448051 | F65: 38.28674917 | G65: 250 | H65: 0.08820189532 | I65: 228.580775 | J65: 12.19094046 | K65: 250 | L65: 250 | M65: 250 | N65: 250 | O65: 250 | P65: 250 | Q65: 161.2583438 | R65: =IF('Share Price Input'!H66>1,'Share Price Input'!H66,NA()) -> 3138 | S65: 0 | T65: 2963.849378 | U65: 2963.849378 | V65: 2963.845694
A66: 5 | B66: 1995-05-01 | C66: 1650 | D66: 250 | E66: 506.7795719 | F66: 1.575125176 | G66: 250 | H66: 0.6003552574 | I66: 314.3768779 | J66: 2.865439651 | K66: 250 | L66: 250 | M66: 250 | N66: 250 | O66: 250 | P66: 250 | Q66: 287.7651724 | R66: =IF('Share Price Input'!H67>1,'Share Price Input'!H67,NA()) -> 3217 | S66: 0 | T66: 3113.958859 | U66: 3113.958859 | V66: 3113.955175
A67: 6 | B67: 1995-06-01 | C67: 1680 | D67: 250 | E67: =(SIN(($C67*PI()/180*E$6+E$7*PI()/180))*E$5)+E$5 -> 490.3325196 | F67: 14.06615829 | G67: 250 | H67: 1.568791933 | I67: 409.8244039 | J67: 0.01308058063 | K67: 250 | L67: 250 | M67: 250 | N67: 250 | O67: 250 | P67: 250 | Q67: 132.1794711 | R67: =IF('Share Price Input'!H68>1,'Share Price Input'!H68,NA()) -> 3319 | S67: 0 | T67: 3047.980742 | U67: 3047.980742 | V67: 3047.977058
A68: 7 | B68: 1995-07-01 | C68: 1710 | D68: 250 | E68: 474.1100796 | F68: 72.89828466 | G68: 250 | H68: 2.992763921 | I68: 512.8086709 | J68: 3.690003687 | K68: 250 | L68: 250 | M68: 250 | N68: 250 | O68: 250 | P68: 250 | Q68: 0.3195262964 | R68: =IF('Share Price Input'!H69>1,'Share Price Input'!H69,NA()) -> 3379 | S68: 0 | T68: 3066.815645 | U68: 3066.815645 | V68: 3066.811962
A69: 8 | B69: 1995-08-01 | C69: 1740 | D69: 250 | E69: 458.115394 | F69: 164.593685 | G69: 250 | H69: 4.871171374 | I69: 621.0480168 | J69: 13.82383937 | K69: 250 | L69: 250 | M69: 250 | N69: 250 | O69: 250 | P69: 250 | Q69: 151.368425 | R69: =IF('Share Price Input'!H70>1,'Share Price Input'!H70,NA()) -> 3315 | S69: 0 | T69: 3413.816848 | U69: 3413.816848 | V69: 3413.813164
A70: 9 | B70: 1995-09-01 | C70: 1770 | D70: 250 | E70: 442.3515609 | F70: 268.1459109 | G70: 250 | H70: 7.202563446 | I70: 732.1443509 | J70: 30.21513237 | K70: 250 | L70: 250 | M70: 250 | N70: 250 | O70: 250 | P70: 250 | Q70: 288.4253918 | R70: =IF('Share Price Input'!H71>1,'Share Price Input'!H71,NA()) -> 3463 | S70: 0 | T70: 3768.481227 | U70: 3768.481227 | V70: 3768.477543
A71: 10 | B71: 1995-10-01 | C71: 1800 | D71: 250 | E71: 426.8216334 | F71: 359.8322403 | G71: 250 | H71: 9.985139417 | I71: 843.6362849 | J71: 52.54126747 | K71: 250 | L71: 250 | M71: 250 | N71: 250 | O71: 250 | P71: 250 | Q71: 142.0921055 | R71: =IF('Share Price Input'!H72>1,'Share Price Input'!H72,NA()) -> 3478 | S71: 0 | T71: 3834.904987 | U71: 3834.904987 | V71: 3834.901304
A72: 11 | B72: 1995-11-01 | C72: 1830 | D72: 250 | E72: 411.5286195 | F72: 418.6483027 | G72: 250 | H72: 13.21675008 | I72: 953.0536656 | J72: 80.36281926 | K72: 250 | L72: 250 | M72: 250 | N72: 250 | O72: 250 | P72: 250 | Q72: 0.000363186183 | R72: =IF('Share Price Input'!H73>1,'Share Price Input'!H73,NA()) -> 3508 | S72: 0 | T72: 3876.806837 | U72: 3876.806837 | V72: 3876.803153
A73: 12 | B73: 1995-12-01 | C73: 1860 | D73: 250 | E73: 396.4754813 | F73: 431.119959 | G73: 250 | H73: 16.89489941 | I73: 1057.972302 | J73: 113.1322009 | K73: 250 | L73: 250 | M73: 250 | N73: 250 | O73: 250 | P73: 250 | Q73: 141.4448094 | R73: =IF('Share Price Input'!H74>1,'Share Price Input'!H74,NA()) -> 3529 | S73: 0 | T73: 4157.035969 | U73: 4157.035969 | V73: 4157.032285
A74: 1 | B74: 1996-01-01 | C74: 1890 | D74: 250 | E74: 381.6651343 | F74: 394.3900843 | G74: 250 | H74: 21.01674646 | I74: 1156.067676 | J74: 150.2044419 | K74: 250 | L74: 250 | M74: 250 | N74: 250 | O74: 250 | P74: 250 | Q74: 288.4031208 | R74: =IF('Share Price Input'!H75>1,'Share Price Input'!H75,NA()) -> 3759 | S74: 0 | T74: 4391.74352 | U74: 4391.74352 | V74: 4391.739837
A75: 2 | B75: 1996-02-01 | C75: 1920 | D75: 250 | E75: 367.1004471 | F75: 316.8731054 | G75: 250 | H75: 25.57910761 | I75: 1245.166441 | J75: 190.8498823 | K75: 250 | L75: 250 | M75: 250 | N75: 250 | O75: 250 | P75: 250 | Q75: 152.0149549 | R75: =IF('Share Price Input'!H76>1,'Share Price Input'!H76,NA()) -> 3727 | S75: =IF(R75>0,0,R74) -> 0 | T75: =IF(R75>0,U75,0) -> 4297.580255 | U75: =SUM(D75:Q75)-$U$5 -> 4297.580255 | V75: =U75-$U$5 -> 4297.576571
A76: 3 | B76: 1996-03-01 | C76: 1950 | D76: 250 | E76: 352.7842407 | F76: 216.3273439 | G76: 250 | H76: 30.57845899 | I76: 1323.294574 | J76: 234.2685342 | K76: 250 | L76: 250 | M76: 250 | N76: 250 | O76: 250 | P76: 250 | Q76: 0.3640419618 | R76: =IF('Share Price Input'!H77>1,'Share Price Input'!H77,NA()) -> 3672 | S76: 0 | T76: 4157.613511 | U76: 4157.613511 | V76: 4157.609827
A77: 4 | B77: 1996-04-01 | C77: =C76+360/12 -> 1980 | D77: 250 | E77: =(SIN(($C77*PI()/180*E$6+E$7*PI()/180))*E$5)+E$5 -> 338.719288 | F77: 115.7867727 | G77: 250 | H77: 36.01093918 | I77: 1388.721112 | J77: 279.605827 | K77: 250 | L77: 250 | M77: 250 | N77: 250 | O77: 250 | P77: 250 | Q77: 131.5344728 | R77: =IF('Share Price Input'!H78>1,'Share Price Input'!H78,NA()) -> 3809 | S77: 0 | T77: 4290.374728 | U77: 4290.374728 | V77: 4290.371045
A78: 5 | B78: 1996-05-01 | C78: 2010 | D78: 250 | E78: 324.9083131 | F78: 38.2841755 | G78: 250 | H78: 41.87235225 | I78: 1439.996501 | J78: 325.969427 | K78: 250 | L78: 250 | M78: 250 | N78: 250 | O78: 250 | P78: 250 | Q78: 287.6984648 | R78: =IF('Share Price Input'!H79>1,'Share Price Input'!H79,NA()) -> 3747 | S78: 0 | T78: 4458.72555 | U78: 4458.72555 | V78: 4458.721867
A79: 6 | B79: 1996-06-01 | C79: 2040 | D79: 250 | E79: 311.3539911 | F79: 1.574579443 | G79: 250 | H79: 48.15817097 | I79: 1475.984712 | J79: 372.4468008 | K79: 250 | L79: 250 | M79: 250 | N79: 250 | O79: 250 | P79: 250 | Q79: 161.9010469 | R79: =IF('Share Price Input'!H80>1,'Share Price Input'!H80,NA()) -> 3711 | S79: 0 | T79: 4371.415618 | U79: 4371.415618 | V79: 4371.411934
A80: 7 | B80: 1996-07-01 | C80: 2070 | D80: 250 | E80: 298.0589473 | F80: 14.06776551 | G80: 250 | H80: 54.86354028 | I80: 1495.888411 | J80: 418.1231759 | K80: 250 | L80: 250 | M80: 250 | N80: 250 | O80: 250 | P80: 250 | Q80: 1.408841059 | R80: =IF('Share Price Input'!H81>1,'Share Price Input'!H81,NA()) -> 3703 | S80: 0 | T80: 4282.406997 | U80: 4282.406997 | V80: 4282.403313
A81: 8 | B81: 1996-08-01 | C81: 2100 | D81: 250 | E81: 285.0257567 | F81: 72.90167664 | G81: 250 | H81: 61.9832811 | I81: 1499.266621 | J81: 462.0995446 | K81: 250 | L81: 250 | M81: 250 | N81: 250 | O81: 250 | P81: 250 | Q81: 121.6843284 | R81: =IF('Share Price Input'!H82>1,'Share Price Input'!H82,NA()) -> 3867 | S81: 0 | T81: 4502.957525 | U81: 4502.957525 | V81: 4502.953841
A82: 9 | B82: 1996-09-01 | C82: 2130 | D82: 250 | E82: 272.2569437 | F82: 164.5980847 | G82: 250 | H82: 69.51189428 | I82: 1486.044498 | J82: 503.5103594 | K82: 250 | L82: 250 | M82: 250 | N82: 250 | O82: 250 | P82: 250 | Q82: 286.3147594 | R82: =IF('Share Price Input'!H83>1,'Share Price Input'!H83,NA()) -> 3953 | S82: 0 | T82: 4782.232855 | U82: 4782.232855 | V82: 4782.229172
A83: 10 | B83: 1996-10-01 | C83: 2160 | D83: 250 | E83: 259.7549814 | F83: 268.1503104 | G83: 250 | H83: 77.44356487 | I83: 1456.514982 | J83: 541.5405682 | K83: 250 | L83: 250 | M83: 250 | N83: 250 | O83: 250 | P83: 250 | Q83: 171.7035833 | R83: =IF('Share Price Input'!H84>1,'Share Price Input'!H84,NA()) -> 3979 | S83: 0 | T83: 4775.104307 | U83: 4775.104307 | V83: 4775.100623
A84: 11 | B84: 1996-11-01 | C84: 2190 | D84: 250 | E84: 247.5222914 | F84: 359.8356316 | G84: 250 | H84: 85.7721666 | I84: 1411.332315 | J84: 575.4416561 | K84: 250 | L84: 250 | M84: 250 | N84: 250 | O84: 250 | P84: 250 | Q84: 3.129814657 | R84: =IF('Share Price Input'!H85>1,'Share Price Input'!H85,NA()) -> 4058 | S84: 0 | T84: 4683.030192 | U84: 4683.030192 | V84: 4683.026508
A85: 12 | B85: 1996-12-01 | C85: 2220 | D85: 250 | E85: 235.5612428 | F85: 418.649909 | G85: 250 | H85: 94.49126662 | I85: 1351.497537 | J85: 604.5463783 | K85: 250 | L85: 250 | M85: 250 | N85: 250 | O85: 250 | P85: 250 | Q85: 111.9410043 | R85: =IF('Share Price Input'!H86>1,'Share Price Input'!H86,NA()) -> 4118 | S85: 0 | T85: 4816.683655 | U85: 4816.683655 | V85: 4816.679971
A86: 1 | B86: 1997-01-01 | C86: 2250 | D86: 250 | E86: 223.8741525 | F86: 431.1194123 | G86: 250 | H86: 103.5941305 | I86: 1278.336315 | J86: 628.2818925 | K86: 250 | L86: 250 | M86: 250 | N86: 250 | O86: 250 | P86: 250 | Q86: 284.2585549 | R86: =IF('Share Price Input'!H87>1,'Share Price Input'!H87,NA()) -> 4275 | S86: 0 | T86: 4949.460774 | U86: 4949.460774 | V86: 4949.457091
A87: 2 | B87: 1997-02-01 | C87: 2280 | D87: 250 | E87: =(SIN(($C87*PI()/180*E$6+E$7*PI()/180))*E$5)+E$5 -> 212.4632841 | F87: 394.3875099 | G87: 250 | H87: 113.0737273 | I87: 1193.469569 | J87: 646.1810336 | K87: 250 | L87: 250 | M87: 250 | N87: 250 | O87: 250 | P87: 250 | Q87: 181.3761612 | R87: =IF('Share Price Input'!H88>1,'Share Price Input'!H88,NA()) -> 4308 | S87: 0 | T87: 4740.947601 | U87: 4740.947601 | V87: 4740.943917
A88: 3 | B88: 1997-03-01 | C88: 2310 | D88: 250 | E88: 201.3308476 | F88: 316.8690929 | G88: 250 | H88: 122.9227352 | I88: 1098.777557 | J88: 657.891509 | K88: 250 | L88: 250 | M88: 250 | N88: 250 | O88: 250 | P88: 250 | Q88: 5.518816098 | R88: =IF('Share Price Input'!H89>1,'Share Price Input'!H89,NA()) -> 4312 | S88: 0 | T88: 4403.306874 | U88: 4403.306874 | V88: 4403.30319
A89: 4 | B89: 1997-04-01 | C89: 2340 | D89: 250 | E89: 190.4789994 | F89: 216.3228127 | G89: 250 | H89: 133.1335471 | I89: 996.3582243 | J89: 663.1828316 | K89: 250 | L89: 250 | M89: 250 | N89: 250 | O89: 250 | P89: 250 | Q89: 102.3506229 | R89: =IF('Share Price Input'!H90>1,'Share Price Input'!H90,NA()) -> 4436 | S89: 0 | T89: 4301.823354 | U89: 4301.823354 | V89: 4301.81967
A90: 5 | B90: 1997-05-01 | C90: 2370 | D90: 250 | E90: 179.9098412 | F90: 115.7827607 | G90: 250 | H90: 143.6982763 | I90: 888.480716 | J90: 661.9508571 | K90: 250 | L90: 250 | M90: 250 | N90: 250 | O90: 250 | P90: 250 | Q90: 281.5395846 | R90: =IF('Share Price Input'!H91>1,'Share Price Input'!H91,NA()) -> 4621 | S90: 0 | T90: 4271.358352 | U90: 4271.358352 | V90: 4271.354668
A91: 6 | B91: 1997-06-01 | C91: 2400 | D91: 250 | E91: 169.6254201 | F91: 38.28160192 | G91: 250 | H91: 154.6087628 | I91: 777.5351062 | J91: 654.2198334 | K91: 250 | L91: 250 | M91: 250 | N91: 250 | O91: 250 | P91: 250 | Q91: 190.8729931 | R91: =IF('Share Price Input'!H92>1,'Share Price Input'!H92,NA()) -> 4604 | S91: 0 | T91: 3985.140034 | U91: 3985.140034 | V91: 3985.13635
A92: 7 | B92: 1997-07-01 | C92: 2430 | D92: 250 | E92: 159.6277282 | F92: 1.574033804 | G92: 250 | H92: 165.8565795 | I92: 665.9794439 | J92: 640.1419233 | K92: 250 | L92: 250 | M92: 250 | N92: 250 | O92: 250 | P92: 250 | Q92: 8.564536441 | R92: =IF('Share Price Input'!H93>1,'Share Price Input'!H93,NA()) -> 4907 | S92: 0 | T92: 3641.740561 | U92: 3641.740561 | V92: 3641.736878
A93: 8 | B93: 1997-08-01 | C93: 2460 | D93: 250 | E93: 149.9187018 | F93: 14.06937282 | G93: 250 | H93: 177.433039 | I93: 556.2852942 | J93: 619.9942099 | K93: 250 | L93: 250 | M93: 250 | N93: 250 | O93: 250 | P93: 250 | Q93: 92.9585827 | R93: =IF('Share Price Input'!H94>1,'Share Price Input'!H94,NA()) -> 4817 | S93: 0 | T93: 3610.655517 | U93: 3610.655517 | V93: 3610.651833
A94: 9 | B94: 1997-09-01 | C94: 2490 | D94: 250 | E94: 140.5002215 | F94: 72.90506868 | G94: 250 | H94: 189.3291996 | I94: 450.8829795 | J94: 594.1732424 | K94: 250 | L94: 250 | M94: 250 | N94: 250 | O94: 250 | P94: 250 | Q94: 278.1707197 | R94: =IF('Share Price Input'!H95>1,'Share Price Input'!H95,NA()) -> 5244 | S94: 0 | T94: 3725.957748 | U94: 3725.957748 | V94: 3725.954064
A95: 10 | B95: 1997-10-01 | C95: 2520 | D95: 250 | E95: 131.3741115 | F95: 164.6024844 | G95: 250 | H95: 201.5358732 | I95: 352.1077349 | J95: 563.1872322 | K95: 250 | L95: 250 | M95: 250 | N95: 250 | O95: 250 | P95: 250 | Q95: 200.1491233 | R95: =IF('Share Price Input'!H96>1,'Share Price Input'!H96,NA()) -> 4801 | S95: 0 | T95: 3612.952876 | U95: 3612.952876 | V95: 3612.949192
A96: 11 | B96: 1997-11-01 | C96: 2550 | D96: 250 | E96: 122.5421394 | F96: 268.1547098 | G96: 250 | H96: 214.0436315 | I96: 262.1479696 | J96: 527.6460491 | K96: 250 | L96: 250 | M96: 250 | N96: 250 | O96: 250 | P96: 250 | Q96: 12.252558 | R96: =IF('Share Price Input'!H97>1,'Share Price Input'!H97,NA()) -> 4889 | S96: 0 | T96: 3406.783374 | U96: 3406.783374 | V96: 3406.77969
A97: 12 | B97: 1997-12-01 | C97: 2580 | D97: 250 | E97: =(SIN(($C97*PI()/180*E$6+E$7*PI()/180))*E$5)+E$5 -> 114.0060158 | F97: 359.8390229 | G97: 250 | H97: 226.8428138 | I97: 182.9967821 | J97: 488.2492186 | K97: 250 | L97: 250 | M97: 250 | N97: 250 | O97: 250 | P97: 250 | Q97: 83.80934333 | R97: =IF('Share Price Input'!H98>1,'Share Price Input'!H98,NA()) -> 5045 | S97: 0 | T97: 3455.739513 | U97: 3455.739513 | V97: 3455.735829
A98: 1 | B98: 1998-01-01 | C98: 2610 | D98: 250 | E98: 105.7673941 | F98: 418.6515153 | G98: 250 | H98: 239.9235342 | I98: 116.4078018 | J98: 445.7721535 | K98: 250 | L98: 250 | M98: 250 | N98: 250 | O98: 250 | P98: 250 | Q98: 274.1679073 | R98: =IF('Share Price Input'!H99>1,'Share Price Input'!H99,NA()) -> 5107 | S98: 0 | T98: 3600.686623 | U98: 3600.686623 | V98: 3600.682939
A99: 2 | B99: 1998-02-01 | C99: 2640 | D99: 250 | E99: 97.82786995 | F99: 431.1188655 | G99: 250 | H99: 253.2756894 | I99: 63.85633728 | J99: 401.050892 | K99: 250 | L99: 250 | M99: 250 | N99: 250 | O99: 250 | P99: 250 | Q99: 209.1606411 | R99: =IF('Share Price Input'!H100>1,'Share Price Input'!H100,NA()) -> 5582 | S99: 0 | T99: 3456.286611 | U99: 3456.286611 | V99: 3456.282928
A100: 3 | B100: 1998-03-01 | C100: 2670 | D100: 250 | E100: 90.18898119 | F100: 394.3849354 | G100: 250 | H100: 266.8889665 | I100: 26.50668936 | J100: 354.9656427 | K100: 250 | L100: 250 | M100: 250 | N100: 250 | O100: 250 | P100: 250 | Q100: 16.56542261 | R100: =IF('Share Price Input'!H101>1,'Share Price Input'!H101,NA()) -> 5782 | S100: 0 | T100: 3149.496954 | U100: 3149.496954 | V100: 3149.49327
A101: 4 | B101: 1998-04-01 | C101: 2700 | D101: 250 | E101: 82.85220734 | F101: 316.8650804 | G101: 250 | H101: 280.7528509 | I101: 5.186356057 | J101: 308.4234606 | K101: 250 | L101: 250 | M101: 250 | N101: 250 | O101: 250 | P101: 250 | Q101: 74.94621499 | R101: =IF('Share Price Input'!H102>1,'Share Price Input'!H102,NA()) -> 6104 | S101: 0 | T101: 3069.022487 | U101: 3069.022487 | V101: 3069.018803
A102: 5 | B102: 1998-05-01 | C102: 2730 | D102: 250 | E102: 75.81896946 | F102: 216.3182814 | G102: 250 | H102: 294.8566343 | I102: 0.3676988045 | J102: 262.3403941 | K102: 250 | L102: 250 | M102: 250 | N102: 250 | O102: 250 | P102: 250 | Q102: 269.550096 | R102: =IF('Share Price Input'!H103>1,'Share Price Input'!H103,NA()) -> 5948 | S102: 0 | T102: 3119.24839 | U102: 3119.24839 | V102: 3119.244707
A103: 6 | B103: 1998-06-01 | C103: 2760 | D103: 250 | E103: 69.09062977 | F103: 115.7787488 | G103: 250 | H103: 309.1894234 | I103: 12.15747709 | J103: 217.6234549 | K103: 250 | L103: 250 | M103: 250 | N103: 250 | O103: 250 | P103: 250 | Q103: 217.864888 | R103: =IF('Share Price Input'!H104>1,'Share Price Input'!H104,NA()) -> 5888 | S103: 0 | T103: 2941.700938 | U103: 2941.700938 | V103: 2941.697254
A104: 7 | B104: 1998-07-01 | C104: 2790 | D104: 250 | E104: 62.66849148 | F104: 38.27902841 | G104: 250 | H104: 323.7401477 | I104: 40.29448314 | J104: 175.1527668 | K104: 250 | L104: 250 | M104: 250 | N104: 250 | O104: 250 | P104: 250 | Q104: 21.48271424 | R104: =IF('Share Price Input'!H105>1,'Share Price Input'!H105,NA()) -> 6100 | S104: 0 | T104: 2661.613948 | U104: 2661.613948 | V104: 2661.610264
A105: 8 | B105: 1998-08-01 | C105: 2820 | D105: 250 | E105: 56.55379846 | F105: 1.57348826 | G105: 250 | H105: 338.4975685 | I105: 84.15532915 | J105: 135.7642426 | K105: 250 | L105: 250 | M105: 250 | N105: 250 | O105: 250 | P105: 250 | Q105: 66.41115352 | R105: =IF('Share Price Input'!H106>1,'Share Price Input'!H106,NA()) -> 5455 | S105: 0 | T105: 2682.951897 | U105: 2682.951897 | V105: 2682.948213
A106: 9 | B106: 1998-09-01 | C106: 2850 | D106: 250 | E106: 50.74773506 | F106: 14.07098022 | G106: 250 | H106: 353.4502875 | I106: 142.7682586 | J106: 100.2331313 | K106: 250 | L106: 250 | M106: 250 | N106: 250 | O106: 250 | P106: 250 | Q106: 264.3391451 | R106: =IF('Share Price Input'!H107>1,'Share Price Input'!H107,NA()) -> 5269 | S106: 0 | T106: 2925.605854 | U106: 2925.605854 | V106: 2925.60217
A107: 10 | B107: 1998-10-01 | C107: 2880 | D107: 250 | E107: =(SIN(($C107*PI()/180*E$6+E$7*PI()/180))*E$5)+E$5 -> 45.25142582 | F107: 72.90846078 | G107: 250 | H107: 368.5867556 | I107: 214.8346762 | J107: 69.25876031 | K107: 250 | L107: 250 | M107: 250 | N107: 250 | O107: 250 | P107: 250 | Q107: 226.2206603 | R107: =IF('Share Price Input'!H108>1,'Share Price Input'!H108,NA()) -> 5038 | S107: 0 | T107: 2997.057055 | U107: 2997.057055 | V107: 2997.053372
A108: 11 | B108: 1998-11-01 | C108: 2910 | D108: 250 | E108: 40.06593532 | F108: 164.6068841 | G108: 250 | H108: 383.8952816 | I108: 298.7579185 | J108: 43.45077045 | K108: 250 | L108: 250 | M108: 250 | N108: 250 | O108: 250 | P108: 250 | Q108: 26.98115564 | R108: =IF('Share Price Input'!H109>1,'Share Price Input'!H109,NA()) -> 5463 | S108: 0 | T108: 2957.754262 | U108: 2957.754262 | V108: 2957.750578
A109: 12 | B109: 1998-12-01 | C109: 2940 | D109: =(SIN(($C109*PI()/180*D$6+D$7*PI()/180))*D$5)+D$5 -> 250 | E109: 35.19226792 | F109: 268.1591092 | G109: 250 | H109: 399.3640415 | I109: 392.6786288 | J109: 23.31711743 | K109: 250 | L109: 250 | M109: 250 | N109: 250 | O109: 250 | P109: 250 | Q109: 58.24456179 | R109: =IF('Share Price Input'!H110>1,'Share Price Input'!H110,NA()) -> 5535 | S109: 0 | T109: 3176.952043 | U109: 3176.952043 | V109: 3176.948359
A110: 1 | B110: 1999-01-01 | C110: 2970 | D110: 250 | E110: 30.63136757 | F110: 359.8424142 | G110: 250 | H110: 414.9810875 | I110: 494.5159524 | J110: 9.254073994 | K110: 250 | L110: 250 | M110: 250 | N110: 250 | O110: 250 | P110: 250 | Q110: 258.5597221 | R110: =IF('Share Price Input'!H111>1,'Share Price Input'!H111,NA()) -> 5282 | S110: 0 | T110: 3567.780934 | U110: 3567.780934 | V110: 3567.77725
A111: 2 | B111: 1999-02-01 | C111: 3000 | D111: 250 | E111: 26.38411768 | F111: 418.6531214 | G111: 250 | H111: 430.7343574 | I111: 602.0136381 | J111: 1.538430497 | K111: 250 | L111: 250 | M111: 250 | N111: 250 | O111: 250 | P111: 250 | Q111: 234.1884039 | R111: =IF('Share Price Input'!H112>1,'Share Price Input'!H112,NA()) -> 5951 | S111: 0 | T111: 3713.508385 | U111: 3713.508385 | V111: 3713.504702
A112: 3 | B112: 1999-03-01 | C112: 3030 | D112: 250 | E112: 22.45134086 | F112: 431.1183187 | G112: 250 | H112: 446.6116836 | I112: 712.7900272 | J112: 0.3220470729 | K112: 250 | L112: 250 | M112: 250 | N112: 250 | O112: 250 | P112: 250 | Q112: 33.03471858 | R112: =IF('Share Price Input'!H113>1,'Share Price Input'!H113,NA()) -> 6282 | S112: 0 | T112: 3646.324452 | U112: 3646.324452 | V112: 3646.320769
A113: 4 | B113: 1999-04-01 | C113: 3060 | D113: 250 | E113: 18.83379886 | F113: 394.3823608 | G113: 250 | H113: 462.6008028 | I113: 824.3908198 | J113: 5.628864714 | K113: 250 | L113: 250 | M113: 250 | N113: 250 | O113: 250 | P113: 250 | Q113: 50.48509839 | R113: =IF('Share Price Input'!H114>1,'Share Price Input'!H114,NA()) -> 6494 | S113: 0 | T113: 3756.318062 | U113: 3756.318062 | V113: 3756.314378
A114: 5 | B114: 1999-05-01 | C114: 3090 | D114: 250 | E114: 15.53219233 | F114: 316.8610679 | G114: 250 | H114: 478.6893654 | I114: 934.3434508 | J114: 17.35443406 | K114: 250 | L114: 250 | M114: 250 | N114: 250 | O114: 250 | P114: 250 | Q114: 252.2391854 | R114: =IF('Share Price Input'!H115>1,'Share Price Input'!H115,NA()) -> 6457 | S114: 0 | T114: 4015.016012 | U114: 4015.016012 | V114: 4015.012328
A115: 6 | B115: 1999-06-01 | C115: 3120 | D115: 250 | E115: 12.54716077 | F115: 216.3137502 | G115: 250 | H115: 494.8649448 | I115: 1040.211871 | J115: 35.26797117 | K115: 250 | L115: 250 | M115: 250 | N115: 250 | O115: 250 | P115: 250 | Q115: 241.7304015 | R115: =IF('Share Price Input'!H116>1,'Share Price Input'!H116,NA()) -> 6430 | S115: 0 | T115: 4040.932416 | U115: 4040.932416 | V115: 4040.928732
A116: 7 | B116: 1999-07-01 | C116: 3150 | D116: 250 | E116: 9.879282325 | F116: 115.7747369 | G116: 250 | H116: 511.1150473 | I116: 1139.650519 | J116: 59.01689986 | K116: 250 | L116: 250 | M116: 250 | N116: 250 | O116: 250 | P116: 250 | Q116: 39.61474698 | R116: =IF('Share Price Input'!H117>1,'Share Price Input'!H117,NA()) -> 6473 | S116: 0 | T116: 3875.047548 | U116: 3875.047548 | V116: 3875.043865
A117: 8 | B117: 1999-08-01 | C117: 3180 | D117: 250 | E117: =(SIN(($C117*PI()/180*E$6+E$7*PI()/180))*E$5)+E$5 -> 7.529073734 | F117: 38.27645498 | G117: 250 | H117: 527.4271217 | I117: 1230.456287 | J117: 88.13379113 | K117: 250 | L117: 250 | M117: 250 | N117: 250 | O117: 250 | P117: 250 | Q117: 43.16949471 | R117: =IF('Share Price Input'!H118>1,'Share Price Input'!H118,NA()) -> 6153 | S117: 0 | T117: 3934.988539 | U117: 3934.988539 | V117: 3934.984856
A118: 9 | B118: 1999-09-01 | C118: 3210 | D118: 250 | E118: 5.496990202 | F118: 1.572942809 | G118: 250 | H118: 543.7885689 | I118: 1310.617333 | J118: 122.0455632 | K118: 250 | L118: 250 | M118: 250 | N118: 250 | O118: 250 | P118: 250 | Q118: 245.4074547 | R118: =IF('Share Price Input'!H119>1,'Share Price Input'!H119,NA()) -> 6116 | S118: 0 | T118: 4228.925169 | U118: 4228.925169 | V118: 4228.921485
A119: 10 | B119: 1999-10-01 | C119: 3240 | D119: 250 | E119: 3.783425315 | F119: 14.07258771 | G119: 250 | H119: 560.1867516 | I119: 1378.357654 | J119: 160.0847608 | K119: 250 | L119: 250 | M119: 250 | N119: 250 | O119: 250 | P119: 250 | Q119: 248.8109512 | R119: =IF('Share Price Input'!H120>1,'Share Price Input'!H120,NA()) -> 6039 | S119: 0 | T119: 4365.292447 | U119: 4365.292447 | V119: 4365.288763
A120: 11 | B120: 1999-11-01 | C120: 3270 | D120: 250 | E120: 2.388710969 | F120: 72.91185295 | G120: 250 | H120: 576.6090042 | I120: 1432.176433 | J120: 201.5026923 | K120: 250 | L120: 250 | M120: 250 | N120: 250 | O120: 250 | P120: 250 | Q120: 46.69009263 | R120: =IF('Share Price Input'!H121>1,'Share Price Input'!H121,NA()) -> 6512 | S120: 0 | T120: 4332.275102 | U120: 4332.275102 | V120: 4332.271418
A121: 12 | B121: 1999-12-01 | C121: 3300 | D121: 250 | E121: 1.313117301 | F121: 164.6112838 | G121: 250 | H121: 593.0426424 | I121: 1470.881291 | J121: 245.4841655 | K121: 250 | L121: 250 | M121: 250 | N121: 250 | O121: 250 | P121: 250 | Q121: 36.33238099 | R121: =IF('Share Price Input'!H122>1,'Share Price Input'!H122,NA()) -> 6702 | S121: 0 | T121: 4511.661197 | U121: 4511.661197 | V121: 4511.657514
A122: 1 | B122: 2000-01-01 | C122: 3330 | D122: 250 | E122: 0.5568526406 | F122: 268.1635086 | G122: 250 | H122: 609.4749733 | I122: 1493.614705 | J122: 291.1635323 | K122: 250 | L122: 250 | M122: 250 | N122: 250 | O122: 250 | P122: 250 | Q122: 238.0968698 | R122: =IF('Share Price Input'!H123>1,'Share Price Input'!H123,NA()) -> 6532 | S122: 0 | T122: 4901.066758 | U122: 4901.066758 | V122: 4901.063074
A123: 2 | B123: 2000-02-01 | C123: 3360 | D123: 250 | E123: 0.1200634658 | F123: 359.8458053 | G123: 250 | H123: 625.8933048 | I123: 1499.873006 | J123: 337.6417263 | K123: 250 | L123: 250 | M123: 250 | N123: 250 | O123: 250 | P123: 250 | Q123: 255.3965353 | R123: =IF('Share Price Input'!H124>1,'Share Price Input'!H124,NA()) -> 6069 | S123: 0 | T123: 5078.766757 | U123: 5078.766757 | V123: 5078.763073
A124: 3 | B124: 2000-03-01 | C124: 3390 | D124: 250 | E124: 0.002834376854 | F124: 418.6547275 | G124: 250 | H124: 642.2849557 | I124: 1489.517538 | J124: 384.0039588 | K124: 250 | L124: 250 | M124: 250 | N124: 250 | O124: 250 | P124: 250 | Q124: 54.22726261 | R124: =IF('Share Price Input'!H125>1,'Share Price Input'!H125,NA()) -> 6487 | S124: 0 | T124: 4988.687593 | U124: 4988.687593 | V124: 4988.68391
A125: 4 | B125: 2000-04-01 | C125: 3420 | D125: 250 | E125: 0.2051880796 | F125: 431.1177717 | G125: 250 | H125: 658.6372655 | I125: 1462.777732 | J125: 429.3377231 | K125: 250 | L125: 250 | M125: 250 | N125: 250 | O125: 250 | P125: 250 | Q125: 30.00612242 | R125: =IF('Share Price Input'!H126>1,'Share Price Input'!H126,NA()) -> 6357 | S125: 0 | T125: 5012.078119 | U125: 5012.078119 | V125: 5012.074435
A126: 5 | B126: 2000-05-01 | C126: 3450 | D126: 250 | E126: 0.7270853807 | F126: 394.3797861 | G126: 250 | H126: 674.9376039 | I126: 1420.24602 | J126: 472.7507553 | K126: 250 | L126: 250 | M126: 250 | N126: 250 | O126: 250 | P126: 250 | Q126: 230.3420371 | R126: =IF('Share Price Input'!H127>1,'Share Price Input'!H127,NA()) -> 6284 | S126: 0 | T126: 5193.379604 | U126: 5193.379604 | V126: 5193.37592
A127: 6 | B127: 2000-06-01 | C127: 3480 | D127: 250 | E127: =(SIN(($C127*PI()/180*E$6+E$7*PI()/180))*E$5)+E$5 -> 1.568425196 | F127: 316.8570554 | G127: 250 | H127: 691.1733809 | I127: 1362.86471 | J127: 513.3885952 | K127: 250 | L127: 250 | M127: 250 | N127: 250 | O127: 250 | P127: 250 | Q127: 261.4559793 | R127: =IF('Share Price Input'!H128>1,'Share Price Input'!H128,NA()) -> 6536 | S127: 0 | T127: 5147.304462 | U127: 5147.304462 | V127: 5147.300779
A128: 7 | B128: 2000-07-01 | C128: 3510 | D128: 250 | E128: 2.729044568 | F128: 216.309219 | G128: 250 | H128: 707.3320564 | I128: 1291.905111 | J128: 550.4514045 | K128: 250 | L128: 250 | M128: 250 | N128: 250 | O128: 250 | P128: 250 | Q128: 62.19057783 | R128: =IF('Share Price Input'!H129>1,'Share Price Input'!H129,NA()) -> 6475 | S128: 0 | T128: 4830.91373 | U128: 4830.91373 | V128: 4830.910046
A129: 8 | B129: 2000-08-01 | C129: 3540 | D129: 250 | E129: 4.2087187 | F129: 115.7707251 | G129: 250 | H129: 723.4011495 | I129: 1208.939365 | J129: 583.209709 | K129: 250 | L129: 250 | M129: 250 | N129: 250 | O129: 250 | P129: 250 | Q129: 24.22066594 | R129: =IF('Share Price Input'!H130>1,'Share Price Input'!H130,NA()) -> 6420 | S129: 0 | T129: 4659.74665 | U129: 4659.74665 | V129: 4659.742966
A130: 9 | B130: 2000-09-01 | C130: 3570 | D130: 250 | E130: 6.007161 | F130: 38.27388163 | G130: 250 | H130: 739.368249 | I130: 1115.805614 | J130: 611.018756 | K130: 250 | L130: 250 | M130: 250 | N130: 250 | O130: 250 | P130: 250 | Q130: 222.1796662 | R130: =IF('Share Price Input'!H131>1,'Share Price Input'!H131,NA()) -> 6555 | S130: 0 | T130: 4732.649644 | U130: 4732.649644 | V130: 4732.645961
A131: 10 | B131: 2000-10-01 | C131: 3600 | D131: 250 | E131: 8.124023132 | F131: 1.572397453 | G131: 250 | H131: 755.2210222 | I131: 1014.567278 | J131: 633.331205 | K131: 250 | L131: 250 | M131: 250 | N131: 250 | O131: 250 | P131: 250 | Q131: 266.9605995 | R131: =IF('Share Price Input'!H132>1,'Share Price Input'!H132,NA()) -> 6276 | S131: 0 | T131: 4679.772841 | U131: 4679.772841 | V131: 4679.769157
A132: 11 | B132: 2000-11-01 | C132: 3630 | D132: 250 | E132: 10.55889509 | F132: 14.07419528 | G132: 250 | H132: 770.9472246 | I132: 907.467336 | J132: 649.7078999 | K132: 250 | L132: 250 | M132: 250 | N132: 250 | O132: 250 | P132: 250 | Q132: 70.54234193 | R132: =IF('Share Price Input'!H133>1,'Share Price Input'!H133,NA()) -> 6413 | S132: 0 | T132: 4423.294209 | U132: 4423.294209 | V132: 4423.290525
A133: 12 | B133: 2000-12-01 | C133: 3660 | D133: 250 | E133: 13.31130527 | F133: 72.91524518 | G133: 250 | H133: 786.5347096 | I133: 796.8786358 | J133: 659.8265128 | K133: 250 | L133: 250 | M133: 250 | N133: 250 | O133: 250 | P133: 250 | Q133: 19.00339846 | R133: =IF('Share Price Input'!H134>1,'Share Price Input'!H134,NA()) -> 6264 | S133: 0 | T133: 4348.466123 | U133: 4348.466123 | V133: 4348.46244
A134: 1 | B134: 2001-01-01 | C134: 3690 | D134: 250 | E134: 16.38072056 | F134: 164.6156836 | G134: 250 | H134: 801.9714379 | I134: 685.2513187 | J134: 663.487888 | K134: 250 | L134: 250 | M134: 250 | N134: 250 | O134: 250 | P134: 250 | Q134: 213.6483957 | R134: =IF('Share Price Input'!H135>1,'Share Price Input'!H135,NA()) -> 6165 | S134: 0 | T134: 4545.351761 | U134: 4545.351761 | V134: 4545.348077
A135: 2 | B135: 2001-02-01 | C135: 3720 | D135: 250 | E135: 19.76654646 | F135: 268.1679079 | G135: 250 | H135: 817.2454863 | I135: 575.0585373 | J135: 660.619962 | K135: 250 | L135: 250 | M135: 250 | N135: 250 | O135: 250 | P135: 250 | Q135: 271.8843382 | R135: =IF('Share Price Input'!H136>1,'Share Price Input'!H136,NA()) -> 6176 | S135: 0 | T135: 4612.739094 | U135: 4612.739094 | V135: 4612.735411
A136: 3 | B136: 2001-03-01 | C136: 3750 | D136: 250 | E136: 23.46812718 | F136: 359.8491964 | G136: 250 | H136: 832.3450576 | I136: 468.7416615 | J136: 651.2791815 | K136: 250 | L136: 250 | M136: 250 | N136: 250 | O136: 250 | P136: 250 | Q136: 79.24301974 | R136: =IF('Share Price Input'!H137>1,'Share Price Input'!H137,NA()) -> 5580 | S136: 0 | T136: 4414.92256 | U136: 4414.92256 | V136: 4414.918877
A137: 4 | B137: 2001-04-01 | C137: 3780 | D137: 250 | E137: =(SIN(($C137*PI()/180*E$6+E$7*PI()/180))*E$5)+E$5 -> 27.48474578 | F137: 418.6563335 | G137: 250 | H137: 847.258489 | I137: 368.6561887 | J137: 635.6493929 | K137: 250 | L137: 250 | M137: 250 | N137: 250 | O137: 250 | P137: 250 | Q137: 14.37901723 | R137: =IF('Share Price Input'!H138>1,'Share Price Input'!H138,NA()) -> 5920 | S137: 0 | T137: 4312.080483 | U137: 4312.080483 | V137: 4312.0768
A138: 5 | B138: 2001-05-01 | C138: 3810 | D138: 250 | E138: 31.81562428 | F138: 431.1172247 | G138: 250 | H138: 861.9742618 | I138: 277.0195568 | J138: 614.0382234 | K138: 250 | L138: 250 | M138: 250 | N138: 250 | O138: 250 | P138: 250 | Q138: 204.7886104 | R138: =IF('Share Price Input'!H139>1,'Share Price Input'!H139,NA()) -> 5808 | S138: 0 | T138: 4420.749818 | U138: 4420.749818 | V138: 4420.746134
A139: 6 | B139: 2001-06-01 | C139: 3840 | D139: 250 | E139: 36.45992386 | F139: 394.3772113 | G139: 250 | H139: 876.4810098 | I139: 195.8620161 | J139: 586.8710263 | K139: 250 | L139: 250 | M139: 250 | N139: 250 | O139: 250 | P139: 250 | Q139: 276.2038877 | R139: =IF('Share Price Input'!H140>1,'Share Price Input'!H140,NA()) -> 5630 | S139: =IF(R139>0,0,R138) -> 0 | T139: =IF(R139>0,U139,0) -> 4366.251391 | U139: =SUM(D139:Q139)-$U$5 -> 4366.251391 | V139: =U139-$U$5 -> 4366.247708
A140: 7 | B140: 2001-07-01 | C140: 3870 | D140: 250 | E140: 41.41674496 | F140: 316.8530427 | G140: 250 | H140: 890.7675282 | I140: 126.9816478 | J140: 554.6825094 | K140: 250 | L140: 250 | M140: 250 | N140: 250 | O140: 250 | P140: 250 | Q140: 88.25142442 | R140: =IF('Share Price Input'!H141>1,'Share Price Input'!H141,NA()) -> 5482 | S140: 0 | T140: 4018.949214 | U140: 4018.949214 | V140: 4018.94553
A141: 8 | B141: 2001-08-01 | C141: =C140+360/12 -> 3900 | D141: 250 | E141: 46.68512753 | F141: 216.3046878 | G141: 250 | H141: 904.8227825 | I141: 71.90452686 | J141: 518.1062106 | K141: 250 | L141: 250 | M141: 250 | N141: 250 | O141: 250 | P141: 250 | Q141: 10.36941291 | R141: =IF('Share Price Input'!H142>1,'Share Price Input'!H142,NA()) -> 5532 | S141: 0 | T141: 3768.189064 | U141: 3768.189064 | V141: 3768.185381
A142: 9 | B142: 2001-09-01 | C142: 3930 | D142: 250 | E142: 52.26405114 | F142: 115.7667133 | G142: 250 | H142: 918.6359166 | I142: 31.8509114 | J142: 477.8620285 | K142: 250 | L142: 250 | M142: 250 | N142: 250 | O142: 250 | P142: 250 | Q142: 195.6422503 | R142: =IF('Share Price Input'!H143>1,'Share Price Input'!H143,NA()) -> 4785 | S142: 0 | T142: 3792.018188 | U142: 3792.018188 | V142: 3792.014504
A143: 10 | B143: 2001-10-01 | C143: 3960 | D143: 250 | E143: 58.15243523 | F143: 38.27130835 | G143: 250 | H143: 932.1962616 | I143: 7.70820695 | J143: 434.7420535 | K143: 250 | L143: 250 | M143: 250 | N143: 250 | O143: 250 | P143: 250 | Q143: 279.8988003 | R143: =IF('Share Price Input'!H144>1,'Share Price Input'!H144,NA()) -> 5071 | S143: 0 | T143: 3750.965382 | U143: 3750.965382 | V143: 3750.961699
A144: 11 | B144: 2001-11-01 | C144: 3990 | D144: 250 | E144: 64.3491393 | F144: 1.571852191 | G144: 250 | H144: 945.4933437 | I144: 0.01130582733 | J144: 389.5949778 | K144: 250 | L144: 250 | M144: 250 | N144: 250 | O144: 250 | P144: 250 | Q144: 97.52491242 | R144: =IF('Share Price Input'!H145>1,'Share Price Input'!H145,NA()) -> 5203 | S144: 0 | T144: 3498.541848 | U144: 3498.541848 | V144: 3498.538164
A145: 12 | B145: 2001-12-01 | C145: 4020 | D145: 250 | E145: 70.85296312 | F145: 14.07580295 | G145: 250 | H145: 958.5168925 | I145: 8.930736282 | J145: 343.3093909 | K145: 250 | L145: 250 | M145: 250 | N145: 250 | O145: 250 | P145: 250 | Q145: 6.993565972 | R145: =IF('Share Price Input'!H146>1,'Share Price Input'!H146,NA()) -> 5217 | S145: 0 | T145: 3402.675668 | U145: 3402.675668 | V145: 3402.671984
A146: 1 | B146: 2002-01-01 | C146: 4050 | D146: 250 | E146: 77.662647 | F146: 72.91863747 | G146: 250 | H146: 971.2568488 | I146: 34.26888438 | J146: 296.7962908 | K146: 250 | L146: 250 | M146: 250 | N146: 250 | O146: 250 | P146: 250 | Q146: 186.2526122 | R146: =IF('Share Price Input'!H147>1,'Share Price Input'!H147,NA()) -> 5189 | S146: 0 | T146: 3639.152237 | U146: 3639.152237 | V146: 3639.148553
A147: 2 | B147: 2002-02-01 | C147: 4080 | D147: 250 | E147: =(SIN(($C147*PI()/180*E$6+E$7*PI()/180))*E$5)+E$5 -> 84.77687198 | F147: 164.6200834 | G147: 250 | H147: 983.7033726 | I147: 75.46437224 | J147: 250.9711534 | K147: 250 | L147: 250 | M147: 250 | N147: 250 | O147: 250 | P147: 250 | Q147: 282.9515852 | R147: =IF('Share Price Input'!H148>1,'Share Price Input'!H148,NA()) -> 5169 | S147: 0 | T147: 3842.483755 | U147: 3842.483755 | V147: 3842.480071
A148: 3 | B148: 2002-03-01 | C148: 4110 | D148: 250 | E148: 92.19426014 | F148: 268.1723072 | G148: 250 | H148: 995.8468505 | I148: 131.6044956 | J148: 206.7359141 | K148: 250 | L148: 250 | M148: 250 | N148: 250 | O148: 250 | P148: 250 | Q148: 107.0195854 | R148: =IF('Share Price Input'!H149>1,'Share Price Input'!H149,NA()) -> 5271 | S148: 0 | T148: 3801.569729 | U148: 3801.569729 | V148: 3801.566046
A149: 4 | B149: 2002-04-01 | C149: 4140 | D149: 250 | E149: 99.91337481 | F149: 359.8525874 | G149: 250 | H149: 1007.677903 | I149: 201.4454451 | J149: 164.9612156 | K149: 250 | L149: 250 | M149: 250 | N149: 250 | O149: 250 | P149: 250 | Q149: 4.267456841 | R149: =IF('Share Price Input'!H150>1,'Share Price Input'!H150,NA()) -> 5165 | S149: 0 | T149: 3838.114299 | U149: 3838.114299 | V149: 3838.110615
A150: 5 | B150: 2002-05-01 | C150: 4170 | D150: 250 | E150: 107.9327209 | F150: 418.6579394 | G150: 250 | H150: 1019.187392 | I150: 283.4398637 | J150: 126.4692722 | K150: 250 | L150: 250 | M150: 250 | N150: 250 | O150: 250 | P150: 250 | Q150: 176.6641441 | R150: =IF('Share Price Input'!H151>1,'Share Price Input'!H151,NA()) -> 5085 | S150: 0 | T150: 4132.347649 | U150: 4132.347649 | V150: 4132.343965
A151: 6 | B151: 2002-06-01 | C151: 4200 | D151: 250 | E151: 116.2507452 | F151: 431.1166775 | G151: 250 | H151: 1030.366428 | I151: 375.7711287 | J151: 92.01768635 | K151: 250 | L151: 250 | M151: 250 | N151: 250 | O151: 250 | P151: 250 | Q151: 285.3477914 | R151: =IF('Share Price Input'!H152>1,'Share Price Input'!H152,NA()) -> 4540 | S151: 0 | T151: 4330.866774 | U151: 4330.866774 | V151: 4330.86309
A152: 7 | B152: 2002-07-01 | C152: 4230 | D152: 250 | E152: 124.8658366 | F152: 394.3746365 | G152: 250 | H152: 1041.206376 | I152: 476.3935999 | J152: 62.28453804 | K152: 250 | L152: 250 | M152: 250 | N152: 250 | O152: 250 | P152: 250 | Q152: 116.6904978 | R152: =IF('Share Price Input'!H153>1,'Share Price Input'!H153,NA()) -> 4240 | S152: 0 | T152: 4215.811802 | U152: 4215.811802 | V152: 4215.808118
A153: 8 | B153: 2002-08-01 | C153: 4260 | D153: 250 | E153: 133.7763265 | F153: 316.8490301 | G153: 250 | H153: 1051.698865 | I153: 583.0779422 | J153: 37.85503831 | K153: 250 | L153: 250 | M153: 250 | N153: 250 | O153: 250 | P153: 250 | Q153: 2.203990237 | R153: =IF('Share Price Input'!H154>1,'Share Price Input'!H154,NA()) -> 4209 | S153: 0 | T153: 4125.457508 | U153: 4125.457508 | V153: 4125.453825
A154: 9 | B154: 2002-09-01 | C154: 4290 | D154: 250 | E154: 142.980489 | F154: 216.3001565 | G154: 250 | H154: 1061.835789 | I154: 693.4605165 | J154: 19.21001122 | K154: 250 | L154: 250 | M154: 250 | N154: 250 | O154: 250 | P154: 250 | Q154: 166.9222356 | R154: =IF('Share Price Input'!H155>1,'Share Price Input'!H155,NA()) -> 3721 | S154: 0 | T154: 4300.705514 | U154: 4300.705514 | V154: 4300.70183
A155: 10 | B155: 2002-10-01 | C155: 4320 | D155: 250 | E155: 152.4765414 | F155: 115.7627016 | G155: 250 | H155: 1071.609319 | I155: 805.0957481 | J155: 6.716430221 | K155: 250 | L155: 250 | M155: 250 | N155: 250 | O155: 250 | P155: 250 | Q155: 287.0760757 | R155: =IF('Share Price Input'!H156>1,'Share Price Input'!H156,NA()) -> 4039 | S155: 0 | T155: 4438.733132 | U155: 4438.733132 | V155: 4438.729448
A156: 11 | B156: 2002-11-01 | C156: 4350 | D156: 250 | E156: 162.2626444 | F156: 38.26873515 | G156: 250 | H156: 1081.011906 | I156: 915.510309 | J156: 0.6201953464 | K156: 250 | L156: 250 | M156: 250 | N156: 250 | O156: 250 | P156: 250 | Q156: 126.4918701 | R156: =IF('Share Price Input'!H157>1,'Share Price Input'!H157,NA()) -> 4169 | S156: 0 | T156: 4324.161976 | U156: 4324.161976 | V156: 4324.158292
A157: 12 | B157: 2002-12-01 | C157: 4380 | D157: 250 | E157: =(SIN(($C157*PI()/180*E$6+E$7*PI()/180))*E$5)+E$5 -> 172.3369026 | F157: 1.571307024 | G157: 250 | H157: 1090.036288 | I157: 1022.257916 | J157: 1.041293349 | K157: 250 | L157: 250 | M157: 250 | N157: 250 | O157: 250 | P157: 250 | Q157: 0.8129340971 | R157: =IF('Share Price Input'!H158>1,'Share Price Input'!H158,NA()) -> 3940 | S157: 0 | T157: 4288.052957 | U157: 4288.052957 | V157: 4288.049273
A158: 1 | B158: 2003-01-01 | C158: 4410 | D158: 250 | E158: 182.6973647 | F158: 14.0774107 | G158: 250 | H158: 1098.675495 | I158: 1122.973528 | J158: 7.971436134 | K158: 250 | L158: 250 | M158: 250 | N158: 250 | O158: 250 | P158: 250 | Q158: 157.0730023 | R158: =IF('Share Price Input'!H159>1,'Share Price Input'!H159,NA()) -> 3567 | S158: 0 | T158: 4583.464553 | U158: 4583.464553 | V158: 4583.460869
A159: 2 | B159: 2003-02-01 | C159: 4440 | D159: 250 | E159: 193.3420242 | F159: 72.92202982 | G159: 250 | H159: 1106.922853 | I159: 1215.425746 | J159: 21.27422387 | K159: 250 | L159: 250 | M159: 250 | N159: 250 | O159: 250 | P159: 250 | Q159: 288.128257 | R159: =IF('Share Price Input'!H160>1,'Share Price Input'!H160,NA()) -> 3655 | S159: 0 | T159: 4898.011451 | U159: 4898.011451 | V159: 4898.007767
A160: 3 | B160: 2003-03-01 | C160: 4470 | D160: 250 | E160: 204.2688191 | F160: 164.6244832 | G160: 250 | H160: 1114.771993 | I160: 1297.566251 | J160: 40.68782965 | K160: 250 | L160: 250 | M160: 250 | N160: 250 | O160: 250 | P160: 250 | Q160: 136.377305 | R160: =IF('Share Price Input'!H161>1,'Share Price Input'!H161,NA()) -> 3625 | S160: 0 | T160: 4958.292998 | U160: 4958.292998 | V160: 4958.289314
A161: 4 | B161: 2003-04-01 | C161: 4500 | D161: 250 | E161: 215.4756332 | F161: 268.1767065 | G161: 250 | H161: 1122.216853 | I161: 1367.575183 | J161: 65.83015277 | K161: 250 | L161: 250 | M161: 250 | N161: 250 | O161: 250 | P161: 250 | Q161: 0.1008733343 | R161: =IF('Share Price Input'!H162>1,'Share Price Input'!H162,NA()) -> 3600 | S161: 0 | T161: 5039.371719 | U161: 5039.371719 | V161: 5039.368035
A162: 5 | B162: 2003-05-01 | C162: 4530 | D162: 250 | E162: 226.9602959 | F162: 359.8559784 | G162: 250 | H162: 1129.251681 | I162: 1423.901464 | J162: 96.20633928 | K162: 250 | L162: 250 | M162: 250 | N162: 250 | O162: 250 | P162: 250 | Q162: 147.1630681 | R162: =IF('Share Price Input'!H163>1,'Share Price Input'!H163,NA()) -> 4048 | S162: 0 | T162: 5383.335144 | U162: 5383.335144 | V162: 5383.33146
A163: 6 | B163: 2003-06-01 | C163: 4560 | D163: 250 | E163: 238.7205826 | F163: 418.6595452 | G163: 250 | H163: 1135.871045 | I163: 1465.297159 | J163: 131.2185218 | K163: 250 | L163: 250 | M163: 250 | N163: 250 | O163: 250 | P163: 250 | Q163: 288.4993543 | R163: =IF('Share Price Input'!H164>1,'Share Price Input'!H164,NA()) -> 4031 | S163: 0 | T163: 5678.262525 | U163: 5678.262525 | V163: 5678.258841
A164: 7 | B164: 2003-07-01 | C164: 4590 | D164: 250 | E164: 250.7542156 | F164: 431.1161303 | G164: 250 | H164: 1142.069832 | I164: 1490.845129 | J164: 170.1775867 | K164: 250 | L164: 250 | M164: 250 | N164: 250 | O164: 250 | P164: 250 | Q164: 146.3000072 | R164: =IF('Share Price Input'!H165>1,'Share Price Input'!H165,NA()) -> 4157 | S164: 0 | T164: 5631.259217 | U164: 5631.259217 | V164: 5631.255534
A165: 8 | B165: 2003-08-01 | C165: 4620 | D165: 250 | E165: 263.0588642 | F165: 394.3720616 | G165: 250 | H165: 1147.843253 | I165: 1499.979348 | J165: 212.3167374 | K165: 250 | L165: 250 | M165: 250 | N165: 250 | O165: 250 | P165: 250 | Q165: 0.07117866724 | R165: =IF('Share Price Input'!H166>1,'Share Price Input'!H166,NA()) -> 4161 | S165: 0 | T165: 5517.637759 | U165: 5517.637759 | V165: 5517.634076
A166: 9 | B166: 2003-09-01 | C166: 4650 | D166: 250 | E166: 275.6321451 | F166: 316.8450174 | G166: 250 | H166: 1153.186851 | I166: 1492.497441 | J166: 256.8065866 | K166: 250 | L166: 250 | M166: 250 | N166: 250 | O166: 250 | P166: 250 | Q166: 137.2393442 | R166: =IF('Share Price Input'!H167>1,'Share Price Input'!H167,NA()) -> 4091 | S166: 0 | T166: 5632.203702 | U166: 5632.203702 | V166: 5632.200018
A167: 10 | B167: 2003-10-01 | C167: 4680 | D167: 250 | E167: =(SIN(($C167*PI()/180*E$6+E$7*PI()/180))*E$5)+E$5 -> 288.471623 | F167: 216.2956253 | G167: 250 | H167: 1158.096496 | I167: 1468.565175 | J167: 302.7714802 | K167: 250 | L167: 250 | M167: 250 | N167: 250 | O167: 250 | P167: 250 | Q167: 288.1876112 | R167: =IF('Share Price Input'!H168>1,'Share Price Input'!H168,NA()) -> 4092 | S167: 0 | T167: 5722.384328 | U167: 5722.384328 | V167: 5722.380644
A168: 11 | B168: 2003-11-01 | C168: 4710 | D168: 250 | E168: 301.5748111 | F168: 115.7586899 | G168: 250 | H168: 1162.568398 | I168: 1428.71278 | J168: 349.3067322 | K168: 250 | L168: 250 | M168: 250 | N168: 250 | O168: 250 | P168: 250 | Q168: 156.2130052 | R168: =IF('Share Price Input'!H169>1,'Share Price Input'!H169,NA()) -> 4332 | S168: 0 | T168: 5514.130733 | U168: 5514.130733 | V168: 5514.127049
A169: 12 | B169: 2003-12-01 | C169: 4740 | D169: 250 | E169: 314.9391714 | F169: 38.26616204 | G169: 250 | H169: 1166.599102 | I169: 1373.823202 | J169: 395.4964307 | K169: 250 | L169: 250 | M169: 250 | N169: 250 | O169: 250 | P169: 250 | Q169: 0.7239906632 | R169: =IF('Share Price Input'!H170>1,'Share Price Input'!H170,NA()) -> 4342 | S169: 0 | T169: 5289.844375 | U169: 5289.844375 | V169: 5289.840692
A170: 1 | B170: 2004-01-01 | C170: 4770 | D170: 250 | E170: 328.5621155 | F170: 1.57076195 | G170: 250 | H170: 1170.185495 | I170: 1305.112545 | J170: 440.431465 | K170: 250 | L170: 250 | M170: 250 | N170: 250 | O170: 250 | P170: 250 | Q170: 127.348807 | R170: =IF('Share Price Input'!H171>1,'Share Price Input'!H171,NA()) -> 4510 | S170: 0 | T170: 5373.207506 | U170: 5373.207506 | V170: 5373.203823
A171: 2 | B171: 2004-02-01 | C171: 4800 | D171: 250 | E171: 342.4410047 | F171: 14.07901854 | G171: 250 | H171: 1173.324807 | I171: 1224.103124 | J171: 483.2274189 | K171: 250 | L171: 250 | M171: 250 | N171: 250 | O171: 250 | P171: 250 | Q171: 287.1945031 | R171: =IF('Share Price Input'!H172>1,'Share Price Input'!H172,NA()) -> 4390 | S171: 0 | T171: 5524.366193 | U171: 5524.366193 | V171: 5524.362509
A172: 3 | B172: 2004-03-01 | C172: 4830 | D172: 250 | E172: 356.573151 | F172: 72.92542224 | G172: 250 | H172: 1176.014613 | I172: 1132.589739 | J172: 523.0419777 | K172: 250 | L172: 250 | M172: 250 | N172: 250 | O172: 250 | P172: 250 | Q172: 166.0693733 | R172: =IF('Share Price Input'!H173>1,'Share Price Input'!H173,NA()) -> 4540 | S172: 0 | T172: 5427.210592 | U172: 5427.210592 | V172: 5427.206909
A173: 4 | B173: 2004-04-01 | C173: 4860 | D173: =(SIN(($C173*PI()/180*D$6+D$7*PI()/180))*D$5)+D$5 -> 250 | E173: 370.9558171 | F173: 164.628883 | G173: 250 | H173: 1178.252836 | I173: 1032.599908 | J173: 559.091507 | K173: 250 | L173: 250 | M173: 250 | N173: 250 | O173: 250 | P173: 250 | Q173: 2.056219073 | R173: =IF('Share Price Input'!H174>1,'Share Price Input'!H174,NA()) -> 4410 | S173: 0 | T173: 5307.581486 | U173: 5307.581486 | V173: 5307.577803
A174: 5 | B174: 2004-05-01 | C174: 4890 | D174: 250 | E174: 385.5862172 | F174: 268.1811058 | G174: 250 | H174: 1180.037747 | I174: 926.3489511 | J174: 590.666476 | K174: 250 | L174: 250 | M174: 250 | N174: 250 | O174: 250 | P174: 250 | Q174: 117.5382759 | R174: =IF('Share Price Input'!H175>1,'Share Price Input'!H175,NA()) -> 4489 | S174: 0 | T174: 5468.355089 | U174: 5468.355089 | V174: 5468.351405
A175: 6 | B175: 2004-06-01 | C175: 4920 | D175: 250 | E175: 400.4615177 | F175: 359.8593693 | G175: 250 | H175: 1181.367967 | I175: 816.1909051 | J175: 617.1454227 | K175: 250 | L175: 250 | M175: 250 | N175: 250 | O175: 250 | P175: 250 | Q175: 285.5247314 | R175: =IF('Share Price Input'!H176>1,'Share Price Input'!H176,NA()) -> 4430 | S175: 0 | T175: 5660.546229 | U175: 5660.546229 | V175: 5660.542545
A176: 7 | B176: 2004-07-01 | C176: 4950 | D176: 250 | E176: 415.5788374 | F176: 418.6611509 | G176: 250 | H176: 1182.242468 | I176: 704.5663704 | J176: 638.0071856 | K176: 250 | L176: 250 | M176: 250 | N176: 250 | O176: 250 | P176: 250 | Q176: 175.822454 | R176: =IF('Share Price Input'!H177>1,'Share Price Input'!H177,NA()) -> 4464 | S176: 0 | T176: 5534.874783 | U176: 5534.874783 | V176: 5534.871099
A177: 8 | B177: 2004-08-01 | C177: 4980 | D177: 250 | E177: =(SIN(($C177*PI()/180*E$6+E$7*PI()/180))*E$5)+E$5 -> 430.9352482 | F177: 431.1155829 | G177: 250 | H177: 1182.660576 | I177: 593.9484378 | J177: 652.8411612 | K177: 250 | L177: 250 | M177: 250 | N177: 250 | O177: 250 | P177: 250 | Q177: 4.061557458 | R177: =IF('Share Price Input'!H178>1,'Share Price Input'!H178,NA()) -> 4413 | S177: 0 | T177: 5295.55888 | U177: 5295.55888 | V177: 5295.555197
A178: 9 | B178: 2004-09-01 | C178: 5010 | D178: 250 | E178: 446.527776 | F178: 394.3694866 | G178: 250 | H178: 1182.621968 | I178: 486.7878967 | J178: 661.3553856 | K178: 250 | L178: 250 | M178: 250 | N178: 250 | O178: 250 | P178: 250 | Q178: 107.8541913 | R178: =IF('Share Price Input'!H179>1,'Share Price Input'!H179,NA()) -> 4459 | S178: 0 | T178: 5279.513021 | U178: 5279.513021 | V178: 5279.509337
A179: 10 | B179: 2004-10-01 | C179: 5040 | D179: 250 | E179: 462.3534004 | F179: 316.8410046 | G179: 250 | H179: 1182.126673 | I179: 385.4589363 | J179: 663.382281 | K179: 250 | L179: 250 | M179: 250 | N179: 250 | O179: 250 | P179: 250 | Q179: 283.1862003 | R179: =IF('Share Price Input'!H180>1,'Share Price Input'!H180,NA()) -> 4570 | S179: 0 | T179: 5293.344812 | U179: 5293.344812 | V179: 5293.341128
A180: 11 | B180: 2004-11-01 | C180: 5070 | D180: 250 | E180: 478.4090565 | F180: 216.2910941 | G180: 250 | H180: 1181.175073 | I180: 292.2065445 | J180: 658.8819536 | K180: 250 | L180: 250 | M180: 250 | N180: 250 | O180: 250 | P180: 250 | Q180: 185.4260784 | R180: =IF('Share Price Input'!H181>1,'Share Price Input'!H181,NA()) -> 4264 | S180: 0 | T180: 5012.386117 | U180: 5012.386117 | V180: 5012.382433
A181: 12 | B181: 2004-12-01 | C181: 5100 | D181: 250 | E181: 494.6916343 | F181: 115.7546783 | G181: 250 | H181: 1179.767905 | I181: 209.0967695 | J181: 647.9429795 | K181: 250 | L181: 250 | M181: 250 | N181: 250 | O181: 250 | P181: 250 | Q181: 6.730513046 | R181: =IF('Share Price Input'!H182>1,'Share Price Input'!H182,NA()) -> 4703 | S181: 0 | T181: 4653.980796 | U181: 4653.980796 | V181: 4653.977112
A182: 1 | B182: 2005-01-01 | C182: 5130 | D182: 250 | E182: 511.1979802 | F182: 38.263589 | G182: 250 | H182: 1177.906254 | I182: 137.970945 | J182: 630.7806608 | K182: 250 | L182: 250 | M182: 250 | N182: 250 | O182: 250 | P182: 250 | Q182: 98.34239552 | R182: =IF('Share Price Input'!H183>1,'Share Price Input'!H183,NA()) -> 4814 | S182: 0 | T182: 4594.458141 | U182: 4594.458141 | V182: 4594.454457
A183: 2 | B183: 2005-02-01 | C183: 5160 | D183: 250 | E183: 527.9248971 | F183: 1.570216971 | G183: 250 | H183: 1175.591559 | I183: 80.40489514 | J183: 607.732788 | K183: 250 | L183: 250 | M183: 250 | N183: 250 | O183: 250 | P183: 250 | Q183: 280.1899797 | R183: =IF('Share Price Input'!H184>1,'Share Price Input'!H184,NA()) -> 4852 | S183: 0 | T183: 4673.410652 | U183: 4673.410652 | V183: 4673.406968
A184: 3 | B184: 2005-03-01 | C184: 5190 | D184: 250 | E184: 544.8691452 | F184: 14.08062647 | G184: 250 | H184: 1172.825607 | I184: 37.67402133 | J184: 579.252992 | K184: 250 | L184: 250 | M184: 250 | N184: 250 | O184: 250 | P184: 250 | Q184: 194.8347856 | R184: =IF('Share Price Input'!H185>1,'Share Price Input'!H185,NA()) -> 4968 | S184: 0 | T184: 4543.533494 | U184: 4543.533494 | V184: 4543.52981
A185: 4 | B185: 2005-04-01 | C185: 5220 | D185: 250 | E185: 562.0274426 | F185: 72.92881472 | G185: 250 | H185: 1169.610535 | I185: 10.72504497 | J185: 545.901815 | K185: 250 | L185: 250 | M185: 250 | N185: 250 | O185: 250 | P185: 250 | Q185: 10.05045166 | R185: =IF('Share Price Input'!H186>1,'Share Price Input'!H186,NA()) -> 4895 | S185: 0 | T185: 4371.24042 | U185: 4371.24042 | V185: 4371.236736
A186: 5 | B186: 2005-05-01 | C186: 5250 | D186: 250 | E186: 579.396466 | F186: 164.6332829 | G186: 250 | H186: 1165.948826 | I186: 0.1550325502 | J186: 508.3356788 | K186: 250 | L186: 250 | M186: 250 | N186: 250 | O186: 250 | P186: 250 | Q186: 89.04791488 | R186: =IF('Share Price Input'!H187>1,'Share Price Input'!H187,NA()) -> 4801 | S186: 0 | T186: 4507.513517 | U186: 4507.513517 | V186: 4507.509833
A187: 6 | B187: 2005-06-01 | C187: 5280 | D187: 250 | E187: =(SIN(($C187*PI()/180*E$6+E$7*PI()/180))*E$5)+E$5 -> 596.9728513 | F187: 268.1855051 | G187: 250 | H187: 1161.843308 | I187: 6.198167378 | J187: 467.293964 | K187: 250 | L187: 250 | M187: 250 | N187: 250 | O187: 250 | P187: 250 | Q187: 276.5502531 | R187: =IF('Share Price Input'!H188>1,'Share Price Input'!H188,NA()) -> 4964 | S187: 0 | T187: 4777.040365 | U187: 4777.040365 | V187: 4777.036681
A188: 7 | B188: 2005-07-01 | C188: 5310 | D188: 250 | E188: 614.7531942 | F188: 359.8627602 | G188: 250 | H188: 1157.297152 | I188: 28.72056113 | J188: 423.5844581 | K188: 250 | L188: 250 | M188: 250 | N188: 250 | O188: 250 | P188: 250 | Q188: 204.004037 | R188: =IF('Share Price Input'!H189>1,'Share Price Input'!H189,NA()) -> 5113 | S188: 0 | T188: 4788.218479 | U188: 4788.218479 | V188: 4788.214795
A189: 8 | B189: 2005-08-01 | C189: 5340 | D189: 250 | E189: 632.7340507 | F189: 418.6627565 | G189: 250 | H189: 1152.31387 | I189: 67.22322019 | J189: 378.0674564 | K189: 250 | L189: 250 | M189: 250 | N189: 250 | O189: 250 | P189: 250 | Q189: 14.00565755 | R189: =IF('Share Price Input'!H190>1,'Share Price Input'!H190,NA()) -> 5290 | S189: 0 | T189: 4663.003328 | U189: 4663.003328 | V189: 4662.999644
A190: 9 | B190: 2005-09-01 | C190: 5370 | D190: 250 | E190: 650.9119383 | F190: 431.1150355 | G190: 250 | H190: 1146.897311 | I190: 120.8531011 | J190: 331.6388295 | K190: 250 | L190: 250 | M190: 250 | N190: 250 | O190: 250 | P190: 250 | Q190: 80.01474718 | R190: =IF('Share Price Input'!H191>1,'Share Price Input'!H191,NA()) -> 5296 | S190: 0 | T190: 4761.427279 | U190: 4761.427279 | V190: 4761.423595
A191: 10 | B191: 2005-10-01 | C191: 5400 | D191: 250 | E191: 669.2833362 | F191: 394.3669115 | G191: 250 | H191: 1141.051658 | I191: 188.4220101 | J191: 285.2123907 | K191: 250 | L191: 250 | M191: 250 | N191: 250 | O191: 250 | P191: 250 | Q191: 272.2842501 | R191: =IF('Share Price Input'!H192>1,'Share Price Input'!H192,NA()) -> 5477 | S191: 0 | T191: 4950.616873 | U191: 4950.616873 | V191: 4950.613189
A192: 11 | B192: 2005-11-01 | C192: 5430 | D192: 250 | E192: 687.844686 | F192: 316.8369918 | G192: 250 | H192: 1134.781426 | I192: 268.4329282 | J192: 239.7019101 | K192: 250 | L192: 250 | M192: 250 | N192: 250 | O192: 250 | P192: 250 | Q192: 212.8904277 | R192: =IF('Share Price Input'!H193>1,'Share Price Input'!H193,NA()) -> 5423 | S192: 0 | T192: 4860.484686 | U192: 4860.484686 | V192: 4860.481003
A193: 12 | B193: 2005-12-01 | C193: 5460 | D193: 250 | E193: 706.5923926 | F193: 216.2865629 | G193: 250 | H193: 1128.091459 | I193: 359.1131779 | J193: 196.0031301 | K193: 250 | L193: 250 | M193: 250 | N193: 250 | O193: 250 | P193: 250 | Q193: 18.57740775 | R193: =IF('Share Price Input'!H194>1,'Share Price Input'!H194,NA()) -> 5423 | S193: 0 | T193: 4624.660446 | U193: 4624.660446 | V193: 4624.656763
A194: 1 | B194: 2006-01-01 | C194: 5490 | D194: 250 | E194: 725.522825 | F194: 115.7506667 | G194: 250 | H194: 1120.986923 | I194: 458.4536982 | J194: 154.9761348 | K194: 250 | L194: 250 | M194: 250 | N194: 250 | O194: 250 | P194: 250 | Q194: 71.28565318 | R194: =IF('Share Price Input'!H195>1,'Share Price Input'!H195,NA()) -> 5618 | S194: 0 | T194: 4646.972217 | U194: 4646.972217 | V194: 4646.968533
A195: 2 | B195: 2006-02-01 | C195: 5520 | D195: 250 | E195: 744.6323164 | F195: 38.26101603 | G195: 250 | H195: 1113.473306 | I195: 564.2535559 | J195: 117.4284219 | K195: 250 | L195: 250 | M195: 250 | N195: 250 | O195: 250 | P195: 250 | Q195: 267.4121647 | R195: =IF('Share Price Input'!H196>1,'Share Price Input'!H196,NA()) -> 5801 | S195: 0 | T195: 4845.457097 | U195: 4845.457097 | V195: 4845.453414
A196: 3 | B196: 2006-03-01 | C196: 5550 | D196: 250 | E196: 763.9171656 | F196: 1.569672086 | G196: 250 | H196: 1105.556412 | I196: 674.1687083 | J196: 84.0990097 | K196: 250 | L196: 250 | M196: 250 | N196: 250 | O196: 250 | P196: 250 | Q196: 221.4518916 | R196: =IF('Share Price Input'!H197>1,'Share Price Input'!H197,NA()) -> 5791 | S196: 0 | T196: 4850.759175 | U196: 4850.759175 | V196: 4850.755492
A197: 4 | B197: 2006-04-01 | C197: 5580 | D197: 250 | E197: =(SIN(($C197*PI()/180*E$6+E$7*PI()/180))*E$5)+E$5 -> 783.3736375 | F197: 14.08223449 | G197: 250 | H197: 1097.242354 | I197: 785.7639366 | J197: 55.64389124 | K197: 250 | L197: 250 | M197: 250 | N197: 250 | O197: 250 | P197: 250 | Q197: 23.74406072 | R197: =IF('Share Price Input'!H198>1,'Share Price Input'!H198,NA()) -> 5964 | S197: 0 | T197: 4759.846431 | U197: 4759.846431 | V197: 4759.842747
A198: 5 | B198: 2006-05-01 | C198: 5610 | D198: 250 | E198: 802.9979635 | F198: 72.93220726 | G198: 250 | H198: 1088.537556 | I198: 896.566799 | J198: 32.62312328 | K198: 250 | L198: 250 | M198: 250 | N198: 250 | O198: 250 | P198: 250 | Q198: 62.90195424 | R198: =IF('Share Price Input'!H199>1,'Share Price Input'!H199,NA()) -> 6082 | S198: 0 | T198: 4956.555919 | U198: 4956.555919 | V198: 4956.552236
A199: 6 | B199: 2006-06-01 | C199: 5640 | D199: 250 | E199: 822.7863427 | F199: 164.6376827 | G199: 250 | H199: 1079.448739 | I199: 1004.122409 | J199: 15.48980308 | K199: 250 | L199: 250 | M199: 250 | N199: 250 | O199: 250 | P199: 250 | Q199: 261.9570603 | R199: =IF('Share Price Input'!H200>1,'Share Price Input'!H200,NA()) -> 5723 | S199: 0 | T199: 5348.438353 | U199: 5348.438353 | V199: 5348.43467
A200: 7 | B200: 2006-07-01 | C200: 5670 | D200: 250 | E200: 842.7349423 | F200: 268.1899043 | G200: 250 | H200: 1069.982925 | I200: 1106.047825 | J200: 4.581150527 | K200: 250 | L200: 250 | M200: 250 | N200: 250 | O200: 250 | P200: 250 | Q200: 229.647901 | R200: =IF('Share Price Input'!H201>1,'Share Price Input'!H201,NA()) -> 5833 | S200: 0 | T200: 5521.180964 | U200: 5521.180964 | V200: 5521.17728
... 305 more rows

Sheet FTSE Fourier
C2: FTSE | D2: manual data | F2: NO USER INPUT ON THIS PAGE | I2: (UNLESS YOU WANT TO!)
D3: 21 year | E3: fs | F3: 12 | G3: sample frequncy, samples /year | H3: 10 year | I3: fs | J3: 12 | K3: sample frequncy, samples /year
D4: 21 year | E4: sa | F4: 256 | G4: so max plot =128 here as max plot= sa/2 | H4: 10 year | I4: sa | J4: 128 | K4: so max plot = 64 here as max plot= sa/2
C6: http://www.williamburrows.com/(X(1)A(oEK292LezAEkAAAAYmE2MWJkMjYtOWNlMi00ZTU2LTk3MjMtNzM4YTJlOWM5MWRlCoJByXFtggs-mwjZQcmldNXI41U1))/charts/annuity10k.aspx?AspxAutoDetectCookieSupport=1
C8: a | D8: b | E8: c | F8: d | G8: e
C9: FTSE | D9: manual data | E9: plot | F9: plot | J9: 21 year
E10: freq = samples/year | F10: magnitude | G10: complex
F11: Amplitude | J11: Data for scatter chart
C12: time | D12: data | E12: FFT | F12: magnitude | G12: complex | J12: FFT | K12: Magnitude
B13: 0 | C13: 1990-10-01 | D13: 2006 | E13: 0 | F13: =2/$F$4 *IMABS( G13) -> 9222.070312 | G13: 1180425 | J13: 0.046875 | K13: 1145.490877
B14: 1 | C14: 1990-11-01 | D14: 2050 | E14: =B14*($F$3/$F$4) -> 0.046875 | F14: 1145.490877 | G14: -109634.208857388+97358.0771827353i | J14: 0.09375 | K14: 1130.729202
B15: 2 | C15: 1990-12-01 | D15: 2149 | E15: =B15*($F$3/$F$4) -> 0.09375 | F15: 1130.729202 | G15: -14968.9524908704+143957.17959575i | J15: 0.140625 | K15: 352.9388156
B16: 3 | C16: 1991-01-01 | D16: 2144 | E16: =B16*($F$3/$F$4) -> 0.140625 | F16: 352.9388156 | G16: -16458.5497046154-42071.3956613129i | J16: 0.1875 | K16: 446.7297548
B17: 4 | C17: 1991-02-01 | D17: 2177 | E17: 0.1875 | F17: 446.7297548 | G17: 18989.8035410148+53936.0811791224i | J17: 0.234375 | K17: 338.3608971
B18: 5 | C18: 1991-03-01 | D18: 2381 | E18: 0.234375 | F18: 338.3608971 | G18: -6008.01787416384+42891.4524936939i | J18: 0.28125 | K18: 382.2050928
B19: 6 | C19: 1991-04-01 | D19: 2457 | E19: 0.28125 | F19: 382.2050928 | G19: -12121.6742819352+47396.7482115547i | J19: 0.328125 | K19: 297.3901308
B20: 7 | C20: 1991-05-01 | D20: 2486 | E20: 0.328125 | F20: 297.3901308 | G20: -34054.90185547+17008.2097808132i | J20: 0.375 | K20: 187.4279607
B21: 8 | C21: 1991-06-01 | D21: 2500 | E21: 0.375 | F21: 187.4279607 | G21: -23318.8649779696+5638.08583453151i | J21: 0.421875 | K21: 132.4129849
B22: 9 | C22: 1991-07-01 | D22: 2415 | E22: 0.421875 | F22: 132.4129849 | G22: -16947.0902290822+245.067350137087i | J22: 0.46875 | K22: 112.1282077
B23: 10 | C23: 1991-08-01 | D23: 2589 | E23: 0.46875 | F23: 112.1282077 | G23: -14039.6508204449-2979.91519464305i | J23: 0.515625 | K23: 173.9414618
B24: 11 | C24: 1991-09-01 | D24: 2646 | E24: 0.515625 | F24: 173.9414618 | G24: -5761.72029882763+21506.0655589771i | J24: 0.5625 | K24: 148.1634918
B25: 12 | C25: 1991-10-01 | D25: 2622 | E25: 0.5625 | F25: 148.1634918 | G25: -14487.8578126029+12238.072978613i | J25: 0.609375 | K25: 107.0014211
B26: 13 | C26: 1991-11-01 | D26: 2566 | E26: 0.609375 | F26: 107.0014211 | G26: -11870.6846339746+6831.70880127151i | J26: 0.65625 | K26: 180.1576416
B27: 14 | C27: 1991-12-01 | D27: 2420 | E27: 0.65625 | F27: 180.1576416 | G27: -21119.5245432812+9259.4545428166i
B28: 15 | C28: 1992-01-01 | D28: 2493 | E28: 0.703125 | F28: 121.7803044 | G28: -14697.185007217-5193.71959796605i
B29: 16 | C29: 1992-02-01 | D29: 2571 | E29: 0.75 | F29: 186.9861948 | G29: -23738.6559717553+3053.47650575269i
B30: 17 | C30: 1992-03-01 | D30: 2562 | E30: 0.796875 | F30: 61.19150689 | G30: -6304.78527234101-4647.3584671269i
B31: 18 | C31: 1992-04-01 | D31: 2440 | E31: 0.84375 | F31: 89.12091046 | G31: -11028.7916426921-2914.83719738056i
B32: 19 | C32: 1992-05-01 | D32: 2654 | E32: 0.890625 | F32: 71.225322 | G32: -7534.37385962805+5133.22552675408i
B33: 20 | C33: 1992-06-01 | D33: 2708 | E33: 2 | F33: 26 | G33: -1908.28116613313-2766.08311697869i
B34: 21 | C34: 1992-07-01 | D34: 2521 | E34: 2 | F34: 61 | G34: -6200.36713991833-4675.19677733529i
B35: 22 | C35: 1992-08-01 | D35: 2400 | E35: 2 | F35: 46 | G35: -134.502474650026-5828.26118454795i
B36: 23 | C36: 1992-09-01 | D36: 2313 | E36: 1.078125 | F36: 103.2878603 | G36: -9217.9266489017-9477.37307988268i
B37: 24 | C37: 1992-10-01 | D37: 2553 | E37: 1.125 | F37: 91.12408151 | G37: -11654.875965046-458.279012222001i
B38: 25 | C38: 1992-11-01 | D38: 2658 | E38: 1.171875 | F38: 27.18437073 | G38: -3239.58508713065+1269.92157874438i
B39: 26 | C39: 1992-12-01 | D39: 2779 | E39: 1.21875 | F39: 52.29783727 | G39: -5932.65697024354-3100.78478822772i
B40: 27 | C40: 1993-01-01 | D40: 2847 | E40: 1.265625 | F40: 73.13797171 | G40: -9299.38283302905+1078.03709827325i
B41: 28 | C41: 1993-02-01 | D41: 2807 | E41: 1.3125 | F41: 37.83965872 | G41: -976.78804981312-4743.95909838624i
B42: 29 | C42: 1993-03-01 | D42: 2868 | E42: 1.359375 | F42: 115.4367242 | G42: -11474.5167160396-9309.28072859555i
B43: 30 | C43: 1993-04-01 | D43: 2879 | E43: 1.40625 | F43: 33.54254508 | G43: -2399.10668072734-3560.61282905675i
B44: 31 | C44: 1993-05-01 | D44: 1831 | E44: 1.453125 | F44: 69.67962855 | G44: -7430.56341079336-4933.06738298213i
B45: 32 | C45: 1993-06-01 | D45: 2841 | E45: 1.5 | F45: 73.16031802 | G45: -5064.77741317165-7876.69206000989i
B46: 33 | C46: 1993-07-01 | D46: 2900 | E46: 1.546875 | F46: 81.67281589 | G46: -8063.0523992221-6654.00781838021i
B47: 34 | C47: 1993-08-01 | D47: 2926 | E47: 1.59375 | F47: 75.83935393 | G47: -6429.6931139962-7272.78388665085i
B48: 35 | C48: 1993-09-01 | D48: 3100 | E48: 1.640625 | F48: 44.38163435 | G48: -2932.23926569964-4865.59559410063i
B49: 36 | C49: 1993-10-01 | D49: 3037 | E49: 1.6875 | F49: 40.99491787 | G49: -2303.21140666235-4714.85883820577i
B50: 37 | C50: 1993-11-01 | D50: 3171 | E50: 1.734375 | F50: 26.72504465 | G50: 3411.16408881893+256.65405104267i
B51: 38 | C51: 1993-12-01 | D51: 3167 | E51: 1.78125 | F51: 52.63084235 | G51: -4611.18153268096-4911.29067258937i
B52: 39 | C52: 1994-01-01 | D52: 3418 | E52: 1.828125 | F52: 63.35322894 | G52: -2233.88785218631-7795.45287214953i
B53: 40 | C53: 1994-02-01 | D53: 3492 | E53: 1.875 | F53: 49.54796474 | G53: 1030.55902102385-6257.8495805623i
B54: 41 | C54: 1994-03-01 | D54: 3328 | E54: 1.921875 | F54: 56.48901038 | G54: -4939.6639372969-5280.26515238046i
B55: 42 | C55: 1994-04-01 | D55: 3086 | E55: 1.96875 | F55: 26.25366513 | G55: -1908.28116613313-2766.08311697869i
B56: 43 | C56: 1994-05-01 | D56: 3125 | E56: 2.015625 | F56: 60.66747947 | G56: -6200.36713991833-4675.19677733529i
B57: 44 | C57: 1994-06-01 | D57: 2971 | E57: 2.0625 | F57: 45.54541389 | G57: -134.502474650026-5828.26118454795i
B58: 45 | C58: 1994-07-01 | D58: 2919 | E58: 2.109375 | F58: 71.26933588 | G58: -2256.93939348917-8838.87858038376i
B59: 46 | C59: 1994-08-01 | D59: 3083 | E59: 2.15625 | F59: 58.19435734 | G59: 2664.68284130139-6955.95032578223i
B60: 47 | C60: 1994-09-01 | D60: 3251 | E60: 2.203125 | F60: 54.61576548 | G60: -204.808467290726-6987.81722231222i
B61: 48 | C61: 1994-10-01 | D61: 3026 | E61: 2.25 | F61: 60.46430205 | G61: -1020.90303930189-7671.80187237766i
B62: 49 | C62: 1994-11-01 | D62: 3097 | E62: 2.296875 | F62: 42.70810941 | G62: 130.692594420696-5465.07552657922i
B63: 50 | C63: 1994-12-01 | D63: 3081 | E63: 2.34375 | F63: 53.2500625 | G63: 2170.28559067076-6461.25572193216i
B64: 51 | C64: 1995-01-01 | D64: 3066 | E64: 2.390625 | F64: 32.51309088 | G64: 1706.88835465898-3795.53371943483i
B65: 52 | C65: 1995-02-01 | D65: 2992 | E65: 2.4375 | F65: 36.15250671 | G65: 2036.61496588587-4155.25556172776i
B66: 53 | C66: 1995-03-01 | D66: 3009 | E66: 2.484375 | F66: 36.60027705 | G66: -523.670171704089-4655.47557815155i
B67: 54 | C67: 1995-04-01 | D67: 3138 | E67: 2.53125 | F67: 65.69358466 | G67: -129.047528981389-8407.78854684745i
B68: 55 | C68: 1995-05-01 | D68: 3217 | E68: 2.578125 | F68: 55.10009954 | G68: 1746.71598031844-6833.09233399089i
B69: 56 | C69: 1995-06-01 | D69: 3319 | E69: 2.625 | F69: 61.30169612 | G69: 1958.75169402952-7598.20319283875i
B70: 57 | C70: 1995-07-01 | D70: 3379 | E70: 2.671875 | F70: 35.61952429 | G70: -1161.8154924201-4408.78590171748i
B71: 58 | C71: 1995-08-01 | D71: 3315 | E71: 2.71875 | F71: 28.73386679 | G71: 1922.50393397899-3135.47191312644i
B72: 59 | C72: 1995-09-01 | D72: 3463 | E72: 2.765625 | F72: 41.79651646 | G72: -1398.61110074869-5163.9031687534i
B73: 60 | C73: 1995-10-01 | D73: 3478 | E73: 2.8125 | F73: 26.77264963 | G73: 1910.48651297848-2844.93920531922i
B74: 61 | C74: 1995-11-01 | D74: 3508 | E74: =B74*($F$3/$F$4) -> 2.859375 | F74: 64.4739928 | G74: 5003.87581375146-6562.60670512097i
B75: 62 | C75: 1995-12-01 | D75: 3529 | E75: 2.90625 | F75: 55.9671487 | G75: 3540.06198081773-6227.99489899411i
B76: 63 | C76: 1996-01-01 | D76: 3759 | E76: =B76*($F$3/$F$4) -> 2.953125 | F76: 70.16354933 | G76: 8303.73199831023-3421.28865413026i
B77: 64 | C77: 1996-02-01 | D77: 3727 | E77: 3 | F77: =2/$F$4 *IMABS( G77) -> 41.04138551 | G77: 3747-3682i
B78: 65 | C78: 1996-03-01 | D78: 3672 | E78: 3.046875 | F78: 34.1724618 | G78: 4364.67886541178+286.550990137687i
B79: 66 | C79: 1996-04-01 | D79: 3809 | E79: 3.09375 | F79: 40.42886272 | G79: 856.752279619931-5103.47997671605i
B80: 67 | C80: 1996-05-01 | D80: 3747 | E80: 3.140625 | F80: 28.85260199 | G80: -370.623367208746-3674.48909125709i
B81: 68 | C81: 1996-06-01 | D81: 3711 | E81: 3.1875 | F81: 33.20007242 | G81: 2660.94459255444-3313.38992951045i
B82: 69 | C82: 1996-07-01 | D82: 3703 | E82: 3.234375 | F82: 64.56689174 | G82: 6419.92324386615-5204.5723123431i
B83: 70 | C83: 1996-08-01 | D83: 3867 | E83: 3.28125 | F83: 38.51219929 | G83: 4898.15934911995-555.52827085403i
B84: 71 | C84: 1996-09-01 | D84: 3953 | E84: 3.328125 | F84: 49.37883189 | G84: 5978.1894718826-2051.79203837384i
B85: 72 | C85: 1996-10-01 | D85: 3979 | E85: 3.375 | F85: 30.80025309 | G85: 2551.87627294945-3005.11242438565i
B86: 73 | C86: 1996-11-01 | D86: 4058 | E86: 3.421875 | F86: 44.14904798 | G86: 2186.08287936211-5211.11560127748i
B87: 74 | C87: 1996-12-01 | D87: 4118 | E87: 3.46875 | F87: 40.7578692 | G87: 4379.14329989051-2835.53675428414i
B88: 75 | C88: 1997-01-01 | D88: 4275 | E88: 3.515625 | F88: 38.85907373 | G88: 4690.51037299894-1655.11474479378i
B89: 76 | C89: 1997-02-01 | D89: 4308 | E89: 3.5625 | F89: 41.41596949 | G89: 4618.07298501453+2603.18859391812i
B90: 77 | C90: 1997-03-01 | D90: 4312 | E90: 3.609375 | F90: 59.59426071 | G90: 7616.91672641379-412.263131759829i
B91: 78 | C91: 1997-04-01 | D91: 4436 | E91: 3.65625 | F91: 40.8852123 | G91: 5181.71758548747-733.01217740324i
B92: 79 | C92: 1997-05-01 | D92: 4621 | E92: 3.703125 | F92: 41.35654611 | G92: 5252.80175868293+656.259037165489i
B93: 80 | C93: 1997-06-01 | D93: 4604 | E93: 3.75 | F93: 29.56141774 | G93: 2201.7296462302-3077.33556804968i
B94: 81 | C94: 1997-07-01 | D94: 4907 | E94: 3.796875 | F94: 56.95358837 | G94: 7286.92255867487+213.83259348633i
B95: 82 | C95: 1997-08-01 | D95: 4817 | E95: 3.84375 | F95: 14.68362541 | G95: 1879.44129409431+15.3592122843988i
B96: 83 | C96: 1997-09-01 | D96: 5244 | E96: 3.890625 | F96: 32.15356917 | G96: 3974.36257929717+1069.1461176911i
B97: 84 | C97: 1997-10-01 | D97: 4801 | E97: 3.9375 | F97: 22.47611784 | G97: 2226.59432572278+1821.83402395948i
B98: 85 | C98: 1997-11-01 | D98: 4889 | E98: 3.984375 | F98: 29.35108097 | G98: 3594.5066064886+1092.75254661904i
B99: 86 | C99: 1997-12-01 | D99: 5045 | E99: 4.03125 | F99: 29.73280416 | G99: 3276.3716973047+1936.36102377203i
B100: 87 | C100: 1998-01-01 | D100: 5107 | E100: 4.078125 | F100: 43.15851439 | G100: 5112.56684807511-2092.71079839747i
B101: 88 | C101: 1998-02-01 | D101: 5582 | E101: 4.125 | F101: 46.68350132 | G101: 5566.35554239371+2173.04966157726i
B102: 89 | C102: 1998-03-01 | D102: 5782 | E102: 4.171875 | F102: 40.4323994 | G102: 5174.65028439726-84.9251053736289i
B103: 90 | C103: 1998-04-01 | D103: 6104 | E103: 4.21875 | F103: 33.32899181 | G103: 2758.50330125378+3254.28366701633i
B104: 91 | C104: 1998-05-01 | D104: 5948 | E104: 4.265625 | F104: 18.67513016 | G104: 1365.40799069513+1962.07870090069i
B105: 92 | C105: 1998-06-01 | D105: 5888 | E105: 4.3125 | F105: 33.65856993 | G105: 2588.0569009357+3444.32636351648i
B106: 93 | C106: 1998-07-01 | D106: 6100 | E106: 4.359375 | F106: 54.27059858 | G106: 5302.0689871655+4488.18724591092i
B107: 94 | C107: 1998-08-01 | D107: 5455 | E107: 4.40625 | F107: 45.47273134 | G107: 1975.64358872799+5474.95794957637i
B108: 95 | C108: 1998-09-01 | D108: 5269 | E108: 4.453125 | F108: 42.58640666 | G108: 4700.91636611+2759.60885250416i
B109: 96 | C109: 1998-10-01 | D109: 5038 | E109: 4.5 | F109: 20.84359473 | G109: 860.777413171639+2525.30793999009i
B110: 97 | C110: 1998-11-01 | D110: 5463 | E110: 4.546875 | F110: 16.61448544 | G110: 1556.20405141627+1449.44360516851i
B111: 98 | C111: 1998-12-01 | D111: 5535 | E111: 4.59375 | F111: 10.30597792 | G111: -1310.00330679985-155.203387442202i
B112: 99 | C112: 1999-01-01 | D112: 5282 | E112: 4.640625 | F112: 20.89544444 | G112: 2142.81111995491+1600.6048863385i
B113: 100 | C113: 1999-02-01 | D113: 5951 | E113: 4.6875 | F113: 7.232383858 | G113: 594.393216976852+709.718786771367i
B114: 101 | C114: 1999-03-01 | D114: 6282 | E114: 4.734375 | F114: 43.00933066 | G114: 2702.30972622027+4796.32011957728i
B115: 102 | C115: 1999-04-01 | D115: 6494 | E115: 4.78125 | F115: 42.02016083 | G115: 3919.41519634941+3683.38344950164i
B116: 103 | C116: 1999-05-01 | D116: 6457 | E116: 4.828125 | F116: 32.05113613 | G116: 2159.17289829692+3488.38807377221i
B117: 104 | C117: 1999-06-01 | D117: 6430 | E117: 4.875 | F117: 34.55371689 | G117: 2018.11160806283+3935.61374353367i
B118: 105 | C118: 1999-07-01 | D118: 6473 | E118: 4.921875 | F118: 35.54518545 | G118: 3944.37259006548+2267.6985975105i
B119: 106 | C119: 1999-08-01 | D119: 6153 | E119: 4.96875 | F119: 28.62343027 | G119: -2569.15324158127+2612.06341397513i
B120: 107 | C120: 1999-09-01 | D120: 6116 | E120: 5.015625 | F120: 38.02486057 | G120: -2565.76770447765+4135.97608687438i
B121: 108 | C121: 1999-10-01 | D121: 6039 | E121: 5.0625 | F121: 25.72648764 | G121: -814.060289272086+3190.78230784911i
B122: 109 | C122: 1999-11-01 | D122: 6512 | E122: 5.109375 | F122: 40.13017326 | G122: -4882.78532928602+1594.89991720436i
B123: 110 | C123: 1999-12-01 | D123: 6702 | E123: 5.15625 | F123: 21.10060565 | G123: 1084.38481660167+2473.63072579824i
B124: 111 | C124: 2000-01-01 | D124: 6532 | E124: 5.203125 | F124: 6.790899294 | G124: -826.276433074013-269.883181894754i
B125: 112 | C125: 2000-02-01 | D125: 6069 | E125: 5.25 | F125: 7.567176633 | G125: -358.170635172999+899.942810080633i
B126: 113 | C126: 2000-03-01 | D126: 6487 | E126: 5.296875 | F126: 3.419747937 | G126: 340.925882342226-274.545285014941i
B127: 114 | C127: 2000-04-01 | D127: 6357 | E127: 5.34375 | F127: 12.59063573 | G127: 1575.69006601883-338.319081268987i
B128: 115 | C128: 2000-05-01 | D128: 6284 | E128: 5.390625 | F128: 24.76085064 | G128: -1659.36440516259+2700.28436550001i
B129: 116 | C129: 2000-06-01 | D129: 6536 | E129: 5.4375 | F129: 23.82996163 | G129: -59.5933028055333+3049.65288730974i
B130: 117 | C130: 2000-07-01 | D130: 6475 | E130: 5.484375 | F130: 37.62320002 | G130: -1723.2138543352+4496.90681184088i
B131: 118 | C131: 2000-08-01 | D131: 6420 | E131: 5.53125 | F131: 12.16245219 | G131: 354.093835367676+1515.98969076223i
B132: 119 | C132: 2000-09-01 | D132: 6555 | E132: 5.578125 | F132: 29.86568102 | G132: -218.873449302157+3816.53626680254i
B133: 120 | C133: 2000-10-01 | D133: 6276 | E133: 5.625 | F133: 26.12023306 | G133: 376.086804556231+3322.17011660069i
B134: 121 | C134: 2000-11-01 | D134: 6413 | E134: 5.671875 | F134: 25.16317219 | G134: -3213.88502503511+212.249694650907i
B135: 122 | C135: 2000-12-01 | D135: 6264 | E135: 5.71875 | F135: 29.3822743 | G135: -3140.7140750696+2068.94125452637i
B136: 123 | C136: 2001-01-01 | D136: 6165 | E136: 5.765625 | F136: 49.40225474 | G136: -6298.32329363256-563.588370685327i
B137: 124 | C137: 2001-02-01 | D137: 6176 | E137: 5.8125 | F137: 19.16697357 | G137: -2150.85675769205-1180.19168301994i | H137: complex | J137: FFT | K137: magnitude
B138: 125 | C138: 2001-03-01 | D138: 5580 | E138: 5.859375 | F138: 17.86481678 | G138: -2179.33228322662-692.453535790875i | H138: 128 month View only
B139: 126 | C139: 2001-04-01 | D139: 5920 | E139: =B139*($F$3/$F$4) -> 5.90625 | F139: 14.05597536 | G139: 663.102359287238+1672.50991229274i | H139: 663388 | I139: 1 | J139: 0 | K139: =2/$J$4 *IMABS( H139) -> 10365.4375
B140: 127 | C140: 2001-05-01 | D140: 5808 | E140: =B140*($F$3/$F$4) -> 5.953125 | F140: 7.436495754 | G140: -919.610489209124+245.714911626485i | H140: -19610.4782411487+34623.6644043986i | I140: 2 | J140: =I140*($J$3/$J$4) -> 0.1875 | K140: 621.7432715
B141: 128 | C141: 2001-06-01 | D141: 5630 | E141: 6 | F141: =2/$F$4 *IMABS( G141) -> 19.8671875 | G141: -2543 | H141: 48494.5672764902+525.639061456667i | I141: 3 | J141: 0.28125 | K141: 757.7721239
B142: 129 | C142: 2001-07-01 | D142: 5482 | E142: 6.046875 | F142: 7.436495754 | G142: -919.610489209284-245.714911626477i | H142: 8415.43475191497+21293.8544744639i | I142: 4 | J142: 0.375 | K142: 357.7571533
B143: 130 | C143: 2001-08-01 | D143: 5532 | E143: 6.09375 | F143: 14.05597536 | G143: 663.102359287108-1672.50991229262i | H143: -8774.62519823976-6154.74642655601i | I143: 5 | J143: 0.46875 | K143: 167.4683323
B144: 131 | C144: 2001-09-01 | D144: 4785 | E144: 6.140625 | F144: 17.86481678 | G144: -2179.3322832266+692.453535790839i | H144: 1842.72130831776-13662.963497766i | I144: 6 | J144: 0.5625 | K144: 215.4166755
B145: 132 | C145: 2001-10-01 | D145: 5071 | E145: 6.1875 | F145: 19.16697357 | G145: -2150.85675769207+1180.19168302001i | H145: -1090.31759979384+5332.56394714546i | I145: 7 | J145: 0.65625 | K145: 85.04512635
B146: 133 | C146: 2001-11-01 | D146: 5203 | E146: 6.234375 | F146: 49.40225474 | G146: -6298.32329363259+563.588370685382i | H146: -4390.75036160766+7633.34593217002i | I146: 8 | J146: 0.75 | K146: 137.5946575
B147: 134 | C147: 2001-12-01 | D147: 5217 | E147: 6.28125 | F147: 29.3822743 | G147: -3140.71407506964-2068.94125452633i | H147: -5176.35960980674+2083.38348452742i | I147: 9 | J147: 0.84375 | K147: 87.18579965
B148: 135 | C148: 2002-01-01 | D148: 5189 | E148: 6.328125 | F148: 25.16317219 | G148: -3213.88502503514-212.249694650907i | H148: 1568.6637885574-3760.63836223789i | I148: 10 | J148: 0.9375 | K148: 63.66704731
B149: 136 | C149: 2002-02-01 | D149: 5169 | E149: 6.375 | F149: 26.12023306 | G149: 376.086804556198-3322.1701166007i | H149: 2287.36423173259+1067.37003116079i | I149: 11 | J149: 1.03125 | K149: 39.43978398
B150: 137 | C150: 2002-03-01 | D150: 5271 | E150: 6.421875 | F150: 29.86568102 | G150: -218.873449302204-3816.53626680256i | H150: 1956.21164621908-1661.09180293639i | I150: 12 | J150: 1.125 | K150: 40.09872455
B151: 138 | C151: 2002-04-01 | D151: 5165 | E151: 6.46875 | F151: 12.16245219 | G151: 354.093835367656-1515.98969076225i | H151: 1557.13397036801-3681.5490053362i | I151: 13 | J151: 1.21875 | K151: 62.45793366
B152: 139 | C152: 2002-05-01 | D152: 5085 | E152: 6.515625 | F152: 37.62320002 | G152: -1723.21385433525-4496.90681184086i | H152: 3775.14854826389-1699.98291418651i | I152: 14 | J152: 1.3125 | K152: 64.69144098
B153: 140 | C153: 2002-06-01 | D153: 4540 | E153: 6.5625 | F153: 23.82996163 | G153: -59.5933028055661-3049.65288730973i | H153: 1811.00463703249-809.696029244117i | I153: 15 | J153: 1.40625 | K153: 30.99641429
B154: 141 | C154: 2002-07-01 | D154: 4240 | E154: 6.609375 | F154: 24.76085064 | G154: -1659.36440516263-2700.28436550001i | H154: 503.374256250732-4120.4683255105i | I154: 16 | J154: 1.5 | K154: 64.8609632
B155: 142 | C155: 2002-08-01 | D155: 4209 | E155: 6.65625 | F155: 12.59063573 | G155: 1575.69006601881+338.319081268963i | H155: -1236.05382386916-1364.0348468229i | I155: 17 | J155: 1.59375 | K155: 28.76197152
B156: 143 | C156: 2002-09-01 | D156: 3721 | E156: 6.703125 | F156: 3.419747937 | G156: 340.925882342213+274.545285014907i | H156: -2689.3844441916-1064.19277022899i | I156: 18 | J156: 1.6875 | K156: 45.19190564
B157: 144 | C157: 2002-10-01 | D157: 4039 | E157: 6.75 | F157: 7.567176633 | G157: -358.170635173019-899.942810080661i | H157: -1447.1440601865-3105.63611651138i | I157: 19 | J157: 1.78125 | K157: 53.53518488
B158: 145 | C158: 2002-11-01 | D158: 4169 | E158: 6.796875 | F158: 6.790899294 | G158: -826.276433074016+269.883181894726i | H158: 4250.60997670241+1277.15870988658i | I158: 20 | J158: 1.875 | K158: 69.34898785
B159: 146 | C159: 2002-12-01 | D159: 3940 | E159: 6.84375 | F159: 21.10060565 | G159: 1084.38481660164-2473.63072579827i | H159: 1732.42569386453-3429.21765485672i | I159: 21 | J159: 1.96875 | K159: 60.03098262
B160: 147 | C160: 2003-01-01 | D160: 3567 | E160: 6.890625 | F160: 40.13017326 | G160: -4882.78532928604-1594.89991720433i | H160: 3149.69642629255-1808.13264598047i | I160: 22 | J160: 2.0625 | K160: 56.74678896
B161: 148 | C161: 2003-02-01 | D161: 3655 | E161: 6.9375 | F161: 25.72648764 | G161: -814.060289272109-3190.78230784911i | H161: 345.239418468622+704.521578073472i | I161: 23 | J161: 2.15625 | K161: 12.25881489
B162: 149 | C162: 2003-03-01 | D162: 3625 | E162: 6.984375 | F162: 38.02486057 | G162: -2565.76770447769-4135.97608687439i | H162: -1754.88037752891-1325.94181000727i | I162: 24 | J162: 2.25 | K162: 34.36692669
B163: 150 | C163: 2003-04-01 | D163: 3600 | E163: 7.03125 | F163: 28.62343027 | G163: -2569.15324158128-2612.06341397513i | H163: -363.846066994231+118.417673696838i | I163: 25 | J163: 2.34375 | K163: 5.978613943
B164: 151 | C164: 2003-05-01 | D164: 4048 | E164: 7.078125 | F164: 35.54518545 | G164: 3944.37259006546-2267.69859751055i | H164: -887.166169012339-870.683338314756i | I164: 26 | J164: 2.4375 | K164: 19.42253045
B165: 152 | C165: 2003-06-01 | D165: 4031 | E165: 7.125 | F165: 34.55371689 | G165: 2018.11160806281-3935.61374353369i | H165: 1482.20429651175-1703.80058215899i | I165: 27 | J165: 2.53125 | K165: 35.28575453
B166: 153 | C166: 2003-07-01 | D166: 4157 | E166: 7.171875 | F166: 32.05113613 | G166: 2159.17289829689-3488.38807377225i | H166: 1355.99596944034+2099.68405720233i | I166: 28 | J166: 2.625 | K166: 39.05436856
B167: 154 | C167: 2003-08-01 | D167: 4161 | E167: 7.21875 | F167: 42.02016083 | G167: 3919.41519634939-3683.38344950167i | H167: 162.651539588427-78.9581274977213i | I167: 29 | J167: 2.71875 | K167: 2.825054844
B168: 155 | C168: 2003-09-01 | D168: 4091 | E168: 7.265625 | F168: 43.00933066 | G168: 2702.30972622023-4796.32011957731i | H168: 1378.32394966275-353.698981179399i | I168: 30 | J168: 2.8125 | K168: 22.23410532
B169: 156 | C169: 2003-10-01 | D169: 4092 | E169: 7.3125 | F169: 7.232383858 | G169: 594.393216976849-709.718786771367i | H169: 1087.91655726034+2070.40184666686i | I169: 31 | J169: 2.90625 | K169: 36.54422033
B170: 157 | C170: 2003-11-01 | D170: 4332 | E170: 7.359375 | F170: 20.89544444 | G170: 2142.81111995488-1600.60488633855i | H170: -950.69435869791+2457.75753110888i | I170: 32 | J170: 3 | K170: 41.17533443
B171: 158 | C171: 2003-12-01 | D171: 4342 | E171: 7.40625 | F171: 10.30597792 | G171: -1310.00330679982+155.20338744221i | H171: -546.000000000002-1390i | I171: 33 | J171: 3.09375 | K171: =2/$J$4 *IMABS( H171) -> 23.33423082
B172: 159 | C172: 2004-01-01 | D172: 4510 | E172: 7.453125 | F172: 16.61448544 | G172: 1556.2040514163-1449.44360516855i | H172: 3632.0470002794-958.901678478204i | I172: 34 | J172: 3.1875 | K172: 58.69524094
B173: 160 | C173: 2004-02-01 | D173: 4390 | E173: 7.5 | F173: 20.84359473 | G173: 860.777413171635-2525.30793999011i | H173: 2768.12559633285+1906.90011222197i | I173: 35 | J173: 3.28125 | K173: 52.52135762
B174: 161 | C174: 2004-03-01 | D174: 4540 | E174: 7.546875 | F174: 42.58640666 | G174: 4700.91636610995-2759.60885250425i | H174: -421.435322356175-532.846901855203i | I174: 36 | J174: 3.375 | K174: 10.61504073
B175: 162 | C175: 2004-04-01 | D175: 4410 | E175: 7.59375 | F175: 45.47273134 | G175: 1975.64358872792-5474.95794957641i | H175: 2032.08336889495-1082.39643728784i | I175: 37 | J175: 3.46875 | K175: 35.97465764
B176: 163 | C176: 2004-05-01 | D176: 4489 | E176: 7.640625 | F176: 54.27059858 | G176: 5302.06898716548-4488.18724591098i | H176: 304.111000069752+2119.44666228671i | I176: 38 | J176: 3.5625 | K176: 33.45552104
B177: 164 | C177: 2004-06-01 | D177: 4430 | E177: 7.6875 | F177: 33.65856993 | G177: 2588.05690093567-3444.3263635165i | H177: -519.662059282293+94.8965646779847i | I177: 39 | J177: 3.65625 | K177: 8.253994266
B178: 165 | C178: 2004-07-01 | D178: 4464 | E178: 7.734375 | F178: 18.67513016 | G178: 1365.4079906951-1962.07870090072i | H178: -413.87563441747+347.802114808729i | I178: 40 | J178: 3.75 | K178: 8.447033847
B179: 166 | C179: 2004-08-01 | D179: 4413 | E179: 7.78125 | F179: 33.32899181 | G179: 2758.50330125376-3254.28366701637i | H179: 2599.27528378147+485.774745859717i | I179: 41 | J179: 3.84375 | K179: 41.31685251
B180: 167 | C180: 2004-09-01 | D180: 4459 | E180: 7.828125 | F180: 40.4323994 | G180: 5174.65028439727+84.925105373562i | H180: 305.401081724083-1543.53308949653i | I180: 42 | J180: 3.9375 | K180: 24.58525216
B181: 168 | C181: 2004-10-01 | D181: 4570 | E181: 7.875 | F181: 46.68350132 | G181: 5566.35554239371-2173.0496615773i | H181: 352.547507643378-1587.36260960905i | I181: 43 | J181: 4.03125 | K181: 25.40689286
B182: 169 | C182: 2004-11-01 | D182: 4264 | E182: 7.921875 | F182: 43.15851439 | G182: 5112.56684807513+2092.71079839739i | H182: 998.644952589285-1283.44135289457i | I182: 44 | J182: 4.125 | K182: 25.40931258
B183: 170 | C183: 2004-12-01 | D183: 4703 | E183: 7.96875 | F183: 29.73280416 | G183: 3276.37169730469-1936.36102377207i | H183: -803.92040473959+1389.72466177339i | I183: 45 | J183: 4.21875 | K183: 25.08590053
B184: 171 | C184: 2005-01-01 | D184: 4814 | E184: 8.015625 | F184: 29.35108097 | G184: 3594.50660648859-1092.7525466191i | H184: -1791.12083708154+341.967613082882i | I184: 46 | J184: 4.3125 | K184: 28.49177385
B185: 172 | C185: 2005-02-01 | D185: 4852 | E185: 8.0625 | F185: 22.47611784 | G185: 2226.59432572277-1821.8340239595i | H185: 427.569489108797+1006.52530075997i | I185: 47 | J185: 4.40625 | K185: 17.08712772
B186: 173 | C186: 2005-03-01 | D186: 4968 | E186: 8.109375 | F186: 32.15356917 | G186: 3974.36257929717-1069.14611769117i | H186: -1589.8575148175-936.25978255849i | I186: 48 | J186: 4.5 | K186: 28.82899007
B187: 174 | C187: 2005-04-01 | D187: 4895 | E187: 8.15625 | F187: 14.68362541 | G187: 1879.44129409433-15.3592122844375i | H187: -1105.94617613084-1190.03484682291i | I187: 49 | J187: 4.59375 | K187: 25.38425344
B188: 175 | C188: 2005-05-01 | D188: 4801 | E188: 8.203125 | F188: 56.95358837 | G188: 7286.9225586749-213.832593486418i | H188: 1235.44980013706-1501.17422274601i | I188: 50 | J188: 4.6875 | K188: 30.37791048
B189: 176 | C189: 2005-06-01 | D189: 4964 | E189: 8.25 | F189: 29.56141774 | G189: 2201.72964623024+3077.33556804965i | H189: 1194.00806466819+486.650057467261i | I189: 51 | J189: 4.78125 | K189: 20.146458
B190: 177 | C190: 2005-07-01 | D190: 5113 | E190: 8.296875 | F190: 41.35654611 | G190: 5252.80175868295-656.25903716556i | H190: -474.528076706168+1324.55141600424i | I190: 52 | J190: 4.875 | K190: 21.98417704
B191: 178 | C191: 2005-08-01 | D191: 5290 | E191: 8.34375 | F191: 40.8852123 | G191: 5181.71758548751+733.012177403179i | H191: -755.73955429564+529.087822282356i | I191: 53 | J191: 4.96875 | K191: 14.41465486
B192: 179 | C192: 2005-09-01 | D192: 5296 | E192: 8.390625 | F192: 59.59426071 | G192: 7616.91672641382+412.26313175975i | H192: -3089.3500150154+312.722644429635i | I192: 54 | J192: 5.0625 | K192: 48.51777362
B193: 180 | C193: 2005-10-01 | D193: 5477 | E193: 8.4375 | F193: 41.41596949 | G193: 4618.07298501453-2603.18859391815i | H193: -2179.51544887276-278.832569328698i | I193: 55 | J193: 5.15625 | K193: 34.33248505
B194: 181 | C194: 2005-11-01 | D194: 5423 | E194: 8.484375 | F194: 38.85907373 | G194: 4690.51037299899+1655.11474479373i | H194: 906.539336076013-778.360805048087i | I194: 56 | J194: 5.25 | K194: 18.66948279
B195: 182 | C195: 2005-12-01 | D195: 5423 | E195: 8.53125 | F195: 40.7578692 | G195: 4379.14329989055+2835.53675428409i | H195: 1276.9303930195-521.259443309703i | I195: 57 | J195: 5.34375 | K195: 21.55039649
B196: 183 | C196: 2006-01-01 | D196: 5618 | E196: 8.578125 | F196: 44.14904798 | G196: 2186.08287936218+5211.11560127744i | H196: 2672.44797930039+1376.10048014079i | I196: 58 | J196: 5.4375 | K196: 46.96769671
B197: 184 | C197: 2006-02-01 | D197: 5801 | E197: 8.625 | F197: 30.80025309 | G197: 2551.87627294949+3005.11242438562i | H197: 1075.77749472082+1638.07486420818i | I197: 59 | J197: 5.53125 | K197: 30.62095987
B198: 185 | C198: 2006-03-01 | D198: 5791 | E198: 8.671875 | F198: 49.37883189 | G198: 5978.18947188266+2051.79203837377i | H198: 760.487919558033+252.999324735572i | I198: 60 | J198: 5.625 | K198: 12.5229334
B199: 186 | C199: 2006-04-01 | D199: 5964 | E199: 8.71875 | F199: 38.51219929 | G199: 4898.15934912+555.52827085401i | H199: -1222.00941544097+2065.5097746423i | I199: 61 | J199: 5.71875 | K199: 37.49882043
B200: 187 | C200: 2006-05-01 | D200: 6082 | E200: 8.765625 | F200: 64.56689174 | G200: 6419.92324386623+5204.57231234306i | H200: -1598.60994418167+1234.90648507862i | I200: 62 | J200: 5.8125 | K200: 31.56307155
B201: 188 | C201: 2006-06-01 | D201: 5723 | E201: 8.8125 | F201: 33.20007242 | G201: 2660.94459255447+3313.38992951047i | H201: 422.314598165529-2316.54582051532i | I201: 63 | J201: 5.90625 | K201: 36.7925925
B202: 189 | C202: 2006-07-01 | D202: 5833 | E202: 8.859375 | F202: 28.85260199 | G202: -370.6233672087+3674.48909125705i | H202: 1930.82160540719+48.1640092326452i | I202: 64 | J202: 6 | K202: 30.1784724
B203: 190 | C203: 2006-08-01 | D203: 5880 | E203: 8.90625 | F203: 40.42886272 | G203: 856.752279620021+5103.47997671612i | H203: 36 | I203: 65 | J203: 6.09375 | K203: =2/$J$4 *IMABS( H203) -> 0.5625
... 205 more rows

Sheet FFT Instructions
D2: Instructions on how to re-run the FFT (if you want to that is)
C3: If you need this you must be keen! - best of luck . . . Andrew WS Ainger 2020
C4: (This is just so that you can run other financial paramaters other than the FTSE ( eg: DOW) etc if you want.
C7: 1 | D7: Label five columns in EXCEL as follows: Time, Data, FFT freq, FFT mag, FFT complex.
E9: Import Data, determine sampling frequency, adjust number of samples to 2n
C12: 2 | D12: Determine the sampling frequency, fs by dividing number of data, D, by the time interval, t.
C14: 3 | D14: we must operate on either 64 data points, 128 data points . . . 1024 data points (210), 2048 data points (211) or any other power of two.
C16: 4 | D16: then let sa = 518. Generally, the larger sa is, the better the accuracy
C18: 5 | D18: Fill in Column E called “FFT complex”
E20: Using Tools > Data Analysis > Fourier Analysis, enter the Input Range of the Data.
E22: Select the output range for the FFT complex number generated by Fourier Analysis to be located at $E$2:$E$1025. Select OK. Column E (called FFT complex) will now contain an FFT complex number.
C25: 6 | D25: Fill in Column D called “FFT mag”
E27: Place the cursor in cell D2 and use the formula bar to enter the following formula: =2/1024 * IMABS(E2). Click the checkmark to the left of the formula to enter the formula into cell D2. Then drag the formula in D2 down
C29: 7 | D29: Fill in Column C called “FFT freq”
E31: The first cell of the FFT freq (C2) is always zero. Enter 0 for cell C2.
E32: The second cell (C3) of the FFT freq is 1 x fs / sa, where fs is the sampling frequency (50,000 in this example), and sa is the number of 2n samples, 1024 in this example).
E33: Therefore, cell C3 is 1 x 50,000 / 1024 = 48.828125. The next cell C4 is 2 x fs / sa or 2 x 50,000/1024. The next cell C5 is 3 x fs/sa, and so on.
C36: 8 | D36: Plot Waveform in the Frequency Domain
E37: Select values in columns C (FFT freq) and D (FFT mag) and plot using Chart Wizard as usual using XY (Scatter plot).
E38: Do not plot more than sa/2 rows. If more than sa/2 rows are plotted, the FFT representation begins to duplicate itself.

Sheet Version
G8: FATBOY Version Information
E14: This microsoft Excel spreadsheet has progressed through many versions. Please make sure you use the latest
E15: version, after all, it's FREE and downloadable from the EBIT page on the website:
E17: www.excelinbusiness.co.uk
I24: Version: | J24: 2020v12
I26: Now includes updated menu, Share Price input and Multiplication factor.
D32: Member of BTecNet(UK) | G32: Contact: Andrew WS Ainger - andrew.ainger@excelinbusiness.co.uk | N32: =I24 -> Version: | O32: =J24 -> 2020v12

Sheet Sheet1
